Workbook

Sheet AngelSimulationData
A5: Trials | B5: 100000 | E5: Portfolio Size | F5: 10 | G5: 20 | H5: 30 | I5: 40 | J5: 50 | K5: 60 | L5: 70 | M5: 80 | N5: 90 | O5: 100 | P5: 110 | Q5: 120 | R5: 130 | S5: 140 | T5: 150 | U5: 160 | V5: 170 | W5: 180 | X5: 190 | Y5: 200
E6: 75% Probability | F6: 0.41 | G6: 0.4733 | H6: 0.4994 | I6: 0.5241 | J6: 0.5504 | K6: 0.563 | L6: 0.5828 | M6: 0.6019 | N6: 0.6169 | O6: 0.6255 | P6: 0.6316 | Q6: 0.6503 | R6: 0.659 | S6: 0.6673 | T6: 0.6801 | U6: 0.6803 | V6: 0.6947 | W6: 0.7002 | X6: 0.7061 | Y6: 0.7188
A7: Average Return | B7: =SUM(A11:A100010)/100000 -> 4.045257092 | E7: Average Return | F7: =SUM(F11:F10010)/10000 -> 3.999854981 | G7: =SUM(G11:G10010)/10000 -> 3.929393206 | H7: =SUM(H11:H10010)/10000 -> 3.980277434 | I7: =SUM(I11:I10010)/10000 -> 4.090998013 | J7: =SUM(J11:J10010)/10000 -> 4.086921272 | K7: =SUM(K11:K10010)/10000 -> 4.00871155 | L7: =SUM(L11:L10010)/10000 -> 4.094937434 | M7: =SUM(M11:M10010)/10000 -> 4.013253207 | N7: =SUM(N11:N10010)/10000 -> 4.089311105 | O7: =SUM(O11:O10010)/10000 -> 4.05927786 | P7: =SUM(P11:P10010)/10000 -> 4.099703992 | Q7: =SUM(Q11:Q10010)/10000 -> 4.0416116 | R7: =SUM(R11:R10010)/10000 -> 3.964695841 | S7: =SUM(S11:S10010)/10000 -> 4.047780341 | T7: =SUM(T11:T10010)/10000 -> 4.120952409 | U7: =SUM(U11:U10010)/10000 -> 4.018648602 | V7: =SUM(V11:V10010)/10000 -> 4.032381318 | W7: =SUM(W11:W10010)/10000 -> 4.032200059 | X7: =SUM(X11:X10010)/10000 -> 4.011288223 | Y7: =SUM(Y11:Y10010)/10000 -> 4.093943118
A10: Trial Outcome
A11: 0 | F11: 0 | G11: 0.0959633961 | H11: 0.2016362229 | I11: 0.2506811479 | J11: 0.385599587 | K11: 0.6873934432 | L11: 0.7231779945 | M11: 0.7860468391 | N11: 0.8648170647 | O11: 0.85102897 | P11: 1.00416435 | Q11: 1.058609328 | R11: 1.121339096 | S11: 1.127130434 | T11: 1.266357941 | U11: 1.234584348 | V11: 1.316194598 | W11: 1.369002825 | X11: 1.358773648 | Y11: 1.428581579
A12: 1.789090689 | F12: 0 | G12: 0.134170518 | H12: 0.2022475502 | I12: 0.3534867211 | J12: 0.4866565824 | K12: 0.7003066522 | L12: 0.8499702515 | M12: 0.8130723623 | N12: 1.041721828 | O12: 0.9403628981 | P12: 1.016245397 | Q12: 1.088966131 | R12: 1.168152985 | S12: 1.236318103 | T12: 1.312759523 | U12: 1.26164933 | V12: 1.326940036 | W12: 1.450866255 | X12: 1.435621239 | Y12: 1.5957431
A13: 6.192549307 | F13: 0 | G13: 0.1490444879 | H13: 0.2629386445 | I13: 0.3859185421 | J13: 0.5540473802 | K13: 0.7066633732 | L13: 0.8612841923 | M13: 0.8274808893 | N13: 1.050580947 | O13: 1.034134543 | P13: 1.095001105 | Q13: 1.241772094 | R13: 1.197878095 | S13: 1.289732644 | T13: 1.317686689 | U13: 1.386748916 | V13: 1.416520155 | W13: 1.476184549 | X13: 1.446616106 | Y13: 1.626091084
A14: 22.80118775 | F14: 0 | G14: 0.1609360397 | H14: 0.2967112701 | I14: 0.419621943 | J14: 0.5560366881 | K14: 0.7537883042 | L14: 0.9083118475 | M14: 0.8948497156 | N14: 1.068280084 | O14: 1.077537032 | P14: 1.145426836 | Q14: 1.314795663 | R14: 1.210623785 | S14: 1.308620607 | T14: 1.337536431 | U14: 1.395173577 | V14: 1.454657412 | W14: 1.479212251 | X14: 1.570312366 | Y14: 1.649552338
A15: 4.849173856 | F15: 0 | G15: 0.1746194497 | H15: 0.3122395465 | I15: 0.4238417205 | J15: 0.5955220148 | K15: 0.7958764945 | L15: 0.940435352 | M15: 0.902937793 | N15: 1.076191903 | O15: 1.165535217 | P15: 1.174279311 | Q15: 1.31983398 | R15: 1.309225251 | S15: 1.323673582 | T15: 1.385866031 | U15: 1.430472814 | V15: 1.526823991 | W15: 1.506376545 | X15: 1.583952742 | Y15: 1.712433585
A16: 8.585842786 | F16: 0 | G16: 0.1842539724 | H16: 0.3321511697 | I16: 0.4444584678 | J16: 0.6502506307 | K16: 0.8004017077 | L16: 0.9566798077 | M16: 0.9134818648 | N16: 1.081611426 | O16: 1.186464719 | P16: 1.197570705 | Q16: 1.333477147 | R16: 1.354975534 | S16: 1.334970245 | T16: 1.386101608 | U16: 1.438995702 | V16: 1.529739628 | W16: 1.507040507 | X16: 1.585795015 | Y16: 1.717820279
A17: 8.522225787 | F17: 0 | G17: 0.1968165064 | H17: 0.3456907243 | I17: 0.5037703363 | J17: 0.6675411611 | K17: 0.8085060424 | L17: 0.9645378817 | M17: 0.9718284703 | N17: 1.10336368 | O17: 1.214743845 | P17: 1.209817315 | Q17: 1.351178389 | R17: 1.361051743 | S17: 1.340716642 | T17: 1.417650084 | U17: 1.447747753 | V17: 1.539504388 | W17: 1.534437011 | X17: 1.598243935 | Y17: 1.724174177
A18: 0 | F18: 0 | G18: 0.2246167456 | H18: 0.3498848166 | I18: 0.5181410002 | J18: 0.6734438994 | K18: 0.8154016423 | L18: 0.9672834046 | M18: 1.020664979 | N18: 1.104634766 | O18: 1.216622972 | P18: 1.21424458 | Q18: 1.369970338 | R18: 1.373926424 | S18: 1.352782862 | T18: 1.422296838 | U18: 1.450703831 | V18: 1.557051478 | W18: 1.591735392 | X18: 1.602630121 | Y18: 1.724452241
A19: 15.64757948 | F19: 0 | G19: 0.2253703285 | H19: 0.3590129772 | I19: 0.5495835182 | J19: 0.6912932293 | K19: 0.8292378989 | L19: 0.9862600687 | M19: 1.038286889 | N19: 1.139525112 | O19: 1.217474439 | P19: 1.249756589 | Q19: 1.386374289 | R19: 1.391054941 | S19: 1.39231779 | T19: 1.432706255 | U19: 1.454567038 | V19: 1.56964833 | W19: 1.593277251 | X19: 1.634830796 | Y19: 1.728811922
A20: 1.210585315 | F20: 0 | G20: 0.2287122397 | H20: 0.3614218035 | I20: 0.555741977 | J20: 0.695691678 | K20: 0.8496657545 | L20: 0.9876807714 | M20: 1.061499933 | N20: 1.158895501 | O20: 1.230388695 | P20: 1.250479975 | Q20: 1.39238219 | R20: 1.393013354 | S20: 1.405078076 | T20: 1.443201565 | U20: 1.490261492 | V20: 1.603454869 | W20: 1.602121849 | X20: 1.637238156 | Y20: 1.751943466
A21: 0 | F21: 0 | G21: 0.2301445973 | H21: 0.3658060475 | I21: 0.5617585457 | J21: 0.7024773737 | K21: 0.8500595803 | L21: 1.006218848 | M21: 1.067845906 | N21: 1.172239544 | O21: 1.231332954 | P21: 1.295770447 | Q21: 1.394562882 | R21: 1.407798328 | S21: 1.44520905 | T21: 1.458565706 | U21: 1.508995575 | V21: 1.60391302 | W21: 1.627194708 | X21: 1.652687383 | Y21: 1.753945139
A22: 45.18963033 | F22: 0 | G22: 0.2307036158 | H22: 0.3756310075 | I22: 0.5675694432 | J22: 0.7149907608 | K22: 0.8578221478 | L22: 1.007906728 | M22: 1.068638573 | N22: 1.182366385 | O22: 1.232565339 | P22: 1.324938793 | Q22: 1.395954723 | R22: 1.428016341 | S22: 1.461923256 | T22: 1.483950836 | U22: 1.524204115 | V22: 1.632787336 | W22: 1.632609894 | X22: 1.654396944 | Y22: 1.761562544
A23: 0 | F23: 0 | G23: 0.2311212457 | H23: 0.4189768064 | I23: 0.5759061253 | J23: 0.7159011467 | K23: 0.8784230082 | L23: 1.01549964 | M23: 1.075705796 | N23: 1.203018911 | O23: 1.23356997 | P23: 1.333137101 | Q23: 1.41894173 | R23: 1.443859391 | S23: 1.469826364 | T23: 1.491752124 | U23: 1.597191894 | V23: 1.634160673 | W23: 1.645846489 | X23: 1.658001944 | Y23: 1.772368027
A24: 0.390752205 | F24: 0 | G24: 0.2311241686 | H24: 0.4401720622 | I24: 0.5982642523 | J24: 0.7510435865 | K24: 0.8889917932 | L24: 1.033342369 | M24: 1.085571314 | N24: 1.213509834 | O24: 1.239598204 | P24: 1.338358915 | Q24: 1.420367129 | R24: 1.445785542 | S24: 1.488288977 | T24: 1.506715769 | U24: 1.609762884 | V24: 1.65681179 | W24: 1.648509224 | X24: 1.660734897 | Y24: 1.780187915
A25: 15.30917407 | F25: 0.0030716051 | G25: 0.2342730114 | H25: 0.4437336932 | I25: 0.6018396782 | J25: 0.766646499 | K25: 0.8916683438 | L25: 1.039770991 | M25: 1.095724764 | N25: 1.226772814 | O25: 1.285587483 | P25: 1.340676022 | Q25: 1.420551266 | R25: 1.454359948 | S25: 1.501907306 | T25: 1.518059304 | U25: 1.613475024 | V25: 1.661388012 | W25: 1.673723449 | X25: 1.671351005 | Y25: 1.780461713
A26: 0 | F26: 0.0044493817 | G26: 0.2456528329 | H26: 0.4473293205 | I26: 0.6092002695 | J26: 0.7786299985 | K26: 0.9131318163 | L26: 1.040208351 | M26: 1.097594602 | N26: 1.240203743 | O26: 1.294012276 | P26: 1.342611522 | Q26: 1.430360686 | R26: 1.465852553 | S26: 1.504784393 | T26: 1.522218377 | U26: 1.615307661 | V26: 1.667007236 | W26: 1.67593538 | X26: 1.701771169 | Y26: 1.786800518
A27: 0.191205107 | F27: 0.008075446 | G27: 0.2556019608 | H27: 0.473383177 | I27: 0.610640375 | J27: 0.7931642553 | K27: 0.9228189595 | L27: 1.047034382 | M27: 1.104396251 | N27: 1.241574684 | O27: 1.295474447 | P27: 1.350438115 | Q27: 1.440601978 | R27: 1.480865159 | S27: 1.528616309 | T27: 1.523857145 | U27: 1.621643769 | V27: 1.668986834 | W27: 1.677978882 | X27: 1.713862124 | Y27: 1.786972135
A28: 0 | F28: 0.0099413086 | G28: 0.264207836 | H28: 0.4748702448 | I28: 0.6130701545 | J28: 0.8070930819 | K28: 0.9248695399 | L28: 1.056981805 | M28: 1.111323002 | N28: 1.252872155 | O28: 1.30853239 | P28: 1.393152763 | Q28: 1.459491997 | R28: 1.51129656 | S28: 1.528715513 | T28: 1.524178483 | U28: 1.628567486 | V28: 1.670743762 | W28: 1.682916456 | X28: 1.719310653 | Y28: 1.79136453
A29: 0.701337367 | F29: 0.0102731807 | G29: 0.2646996185 | H29: 0.5053471965 | I29: 0.6176087455 | J29: 0.8128242297 | K29: 0.9394716334 | L29: 1.062594887 | M29: 1.115557899 | N29: 1.257193055 | O29: 1.330982264 | P29: 1.394893233 | Q29: 1.462724475 | R29: 1.513330447 | S29: 1.538104301 | T29: 1.529060276 | U29: 1.638598951 | V29: 1.671590158 | W29: 1.68614346 | X29: 1.722183114 | Y29: 1.799214039
A30: 0.592609334 | F30: 0.0134490602 | G30: 0.2801302306 | H30: 0.5132263303 | I30: 0.621836625 | J30: 0.815202951 | K30: 0.9515210746 | L30: 1.067846245 | M30: 1.147839262 | N30: 1.261414862 | O30: 1.335256852 | P30: 1.394898844 | Q30: 1.463899354 | R30: 1.517904781 | S30: 1.541167948 | T30: 1.529250246 | U30: 1.649220541 | V30: 1.672723446 | W30: 1.702672157 | X30: 1.724329773 | Y30: 1.810867374
A31: 0 | F31: 0.0148380652 | G31: 0.2807221031 | H31: 0.5156771121 | I31: 0.6233522322 | J31: 0.8220736876 | K31: 0.9575557666 | L31: 1.082512977 | M31: 1.156095493 | N31: 1.26457035 | O31: 1.336230758 | P31: 1.397551852 | Q31: 1.464200781 | R31: 1.521614568 | S31: 1.55267435 | T31: 1.536882221 | U31: 1.661607621 | V31: 1.674927791 | W31: 1.709048717 | X31: 1.752104987 | Y31: 1.820832091
A32: 0 | F32: 0.0167325174 | G32: 0.2853637306 | H32: 0.5181003925 | I32: 0.6294304088 | J32: 0.8221269048 | K32: 0.9589132819 | L32: 1.085355227 | M32: 1.166466843 | N32: 1.272998378 | O32: 1.336453568 | P32: 1.398649196 | Q32: 1.472346002 | R32: 1.527151649 | S32: 1.573501982 | T32: 1.545279056 | U32: 1.664221885 | V32: 1.678377608 | W32: 1.713726441 | X32: 1.755843884 | Y32: 1.821316569
A33: 0 | F33: 0.0169276058 | G33: 0.2904577596 | H33: 0.5215022457 | I33: 0.6365967274 | J33: 0.8410532129 | K33: 0.9619413688 | L33: 1.090837021 | M33: 1.175928218 | N33: 1.279421327 | O33: 1.339403904 | P33: 1.403107514 | Q33: 1.473320517 | R33: 1.529288011 | S33: 1.577064394 | T33: 1.553987485 | U33: 1.672479251 | V33: 1.684205075 | W33: 1.718393946 | X33: 1.777063567 | Y33: 1.822385645
A34: 0.059115737 | F34: 0.0171102064 | G34: 0.2921007778 | H34: 0.5259263161 | I34: 0.6394892268 | J34: 0.8427566378 | K34: 0.9640055128 | L34: 1.100296371 | M34: 1.204063551 | N34: 1.290010409 | O34: 1.347341359 | P34: 1.420896717 | Q34: 1.481970933 | R34: 1.529301588 | S34: 1.579139715 | T34: 1.563126287 | U34: 1.673568306 | V34: 1.687598042 | W34: 1.729610404 | X34: 1.779093338 | Y34: 1.823014437
A35: 0 | F35: 0.0181853361 | G35: 0.2930374103 | H35: 0.5314629392 | I35: 0.6407635656 | J35: 0.8501814064 | K35: 0.977429315 | L35: 1.108019989 | M35: 1.206853958 | N35: 1.292455957 | O35: 1.34955834 | P35: 1.432643626 | Q35: 1.484470594 | R35: 1.531560076 | S35: 1.581718472 | T35: 1.575441341 | U35: 1.674353379 | V35: 1.691249181 | W35: 1.732916365 | X35: 1.786939742 | Y35: 1.823293699
A36: 0.260754159 | F36: 0.022112567 | G36: 0.3004351348 | H36: 0.5450458541 | I36: 0.6536771494 | J36: 0.8620608896 | K36: 0.9801702827 | L36: 1.109199634 | M36: 1.211753 | N36: 1.298282897 | O36: 1.351518315 | P36: 1.432816838 | Q36: 1.486789547 | R36: 1.536623621 | S36: 1.581793092 | T36: 1.596232641 | U36: 1.675094634 | V36: 1.693325869 | W36: 1.738526192 | X36: 1.788543451 | Y36: 1.825612181
A37: 23.63210938 | F37: 0.026147701 | G37: 0.3028140196 | H37: 0.5454666876 | I37: 0.6552532362 | J37: 0.8640109043 | K37: 0.9910979142 | L37: 1.110907805 | M37: 1.214958215 | N37: 1.305841393 | O37: 1.360862361 | P37: 1.433315422 | Q37: 1.48767449 | R37: 1.539377592 | S37: 1.588849743 | T37: 1.607635413 | U37: 1.679237952 | V37: 1.699351657 | W37: 1.740424161 | X37: 1.7904238 | Y37: 1.829966799
A38: 0 | F38: 0.0279047272 | G38: 0.3044320621 | H38: 0.5549851454 | I38: 0.6597164803 | J38: 0.8665794837 | K38: 0.9921561564 | L38: 1.112776272 | M38: 1.218153667 | N38: 1.316507379 | O38: 1.367866461 | P38: 1.433728731 | Q38: 1.488174032 | R38: 1.541505867 | S38: 1.594860504 | T38: 1.615693617 | U38: 1.682169332 | V38: 1.702780118 | W38: 1.743452244 | X38: 1.801042891 | Y38: 1.830999029
A39: 27.8128857 | F39: 0.0313796112 | G39: 0.3230175275 | H39: 0.5576726031 | I39: 0.664619491 | J39: 0.8758571501 | K39: 1.00721438 | L39: 1.118477254 | M39: 1.222260005 | N39: 1.316919746 | O39: 1.374793299 | P39: 1.438520444 | Q39: 1.492180906 | R39: 1.544083074 | S39: 1.598290034 | T39: 1.619622328 | U39: 1.687943069 | V39: 1.708181078 | W39: 1.745428505 | X39: 1.804188719 | Y39: 1.836233011
A40: 0 | F40: 0.0314608236 | G40: 0.3303586752 | H40: 0.5585611241 | I40: 0.6730682727 | J40: 0.8902808676 | K40: 1.013579315 | L40: 1.120511728 | M40: 1.227841678 | N40: 1.330741914 | O40: 1.377506985 | P40: 1.444039793 | Q40: 1.496709815 | R40: 1.552222091 | S40: 1.601250341 | T40: 1.62968183 | U40: 1.697958722 | V40: 1.709377025 | W40: 1.745677488 | X40: 1.811019469 | Y40: 1.8363676
A41: 0 | F41: 0.0325379528 | G41: 0.334258856 | H41: 0.5599477454 | I41: 0.6751312273 | J41: 0.8918577724 | K41: 1.022536158 | L41: 1.124007373 | M41: 1.229592749 | N41: 1.338467566 | O41: 1.391458088 | P41: 1.444681814 | Q41: 1.503121758 | R41: 1.553065413 | S41: 1.606827301 | T41: 1.632240768 | U41: 1.718887751 | V41: 1.716724294 | W41: 1.758502966 | X41: 1.815325229 | Y41: 1.841762375
A42: 8.096395306 | F42: 0.0325972772 | G42: 0.3379649318 | H42: 0.5635376707 | I42: 0.6751803726 | J42: 0.8972577461 | K42: 1.028946075 | L42: 1.124031785 | M42: 1.240221641 | N42: 1.342194888 | O42: 1.394147119 | P42: 1.448169969 | Q42: 1.503801506 | R42: 1.560109294 | S42: 1.60748598 | T42: 1.644812863 | U42: 1.71906519 | V42: 1.718377592 | W42: 1.761059221 | X42: 1.821054407 | Y42: 1.84237441
A43: 0 | F43: 0.0333625579 | G43: 0.3386351758 | H43: 0.5641495598 | I43: 0.6855331124 | J43: 0.9054220593 | K43: 1.031992191 | L43: 1.127332082 | M43: 1.240421812 | N43: 1.344585391 | O43: 1.397032653 | P43: 1.449552369 | Q43: 1.515471868 | R43: 1.563512053 | S43: 1.608538597 | T43: 1.647740919 | U43: 1.721393189 | V43: 1.720033696 | W43: 1.763794387 | X43: 1.823845369 | Y43: 1.845124013
A44: 0.941491392 | F44: 0.0352233215 | G44: 0.341153603 | H44: 0.5658083079 | I44: 0.7094840771 | J44: 0.9075029008 | K44: 1.037689845 | L44: 1.129868188 | M44: 1.250981299 | N44: 1.346871049 | O44: 1.405096353 | P44: 1.451307984 | Q44: 1.518539695 | R44: 1.565280873 | S44: 1.623179159 | T44: 1.656705708 | U44: 1.726209356 | V44: 1.720901539 | W44: 1.76737674 | X44: 1.82567631 | Y44: 1.84588153
A45: 0 | F45: 0.0369666863 | G45: 0.3431231599 | H45: 0.5684329735 | I45: 0.7282607322 | J45: 0.9082557617 | K45: 1.058502002 | L45: 1.130633077 | M45: 1.257102036 | N45: 1.351746765 | O45: 1.407499599 | P45: 1.45333063 | Q45: 1.518804593 | R45: 1.566620831 | S45: 1.628947978 | T45: 1.660167754 | U45: 1.735228799 | V45: 1.734817335 | W45: 1.770900641 | X45: 1.826182917 | Y45: 1.846345574
A46: 0 | F46: 0.0374073217 | G46: 0.3451224912 | H46: 0.5716019502 | I46: 0.7311941116 | J46: 0.9102770075 | K46: 1.061508462 | L46: 1.134796245 | M46: 1.262803899 | N46: 1.354265766 | O46: 1.408769482 | P46: 1.45448968 | Q46: 1.522104388 | R46: 1.567591946 | S46: 1.633172381 | T46: 1.663332312 | U46: 1.737199709 | V46: 1.740917817 | W46: 1.772035915 | X46: 1.834386974 | Y46: 1.850279395
A47: 0 | F47: 0.0377246642 | G47: 0.3493336799 | H47: 0.5735247629 | I47: 0.7441982095 | J47: 0.912114703 | K47: 1.06195586 | L47: 1.134849926 | M47: 1.263539226 | N47: 1.355707998 | O47: 1.417153866 | P47: 1.464712887 | Q47: 1.530167385 | R47: 1.570060494 | S47: 1.634407904 | T47: 1.667513041 | U47: 1.739758611 | V47: 1.745869492 | W47: 1.773782605 | X47: 1.834775409 | Y47: 1.85184666
A48: 2.102731926 | F48: 0.0384723526 | G48: 0.3501928568 | H48: 0.5847820646 | I48: 0.7475943598 | J48: 0.9190141546 | K48: 1.068775772 | L48: 1.135559934 | M48: 1.26568736 | N48: 1.357220612 | O48: 1.418406699 | P48: 1.471263951 | Q48: 1.534360925 | R48: 1.571247794 | S48: 1.648461755 | T48: 1.669298023 | U48: 1.741391469 | V48: 1.755071375 | W48: 1.779414067 | X48: 1.83548067 | Y48: 1.866607781
A49: 4.031878453 | F49: 0.0390331308 | G49: 0.3504298377 | H49: 0.5872149201 | I49: 0.7480490534 | J49: 0.9198983973 | K49: 1.075791781 | L49: 1.145317183 | M49: 1.280127767 | N49: 1.362397913 | O49: 1.425130702 | P49: 1.478118003 | Q49: 1.539539919 | R49: 1.575828727 | S49: 1.649437757 | T49: 1.670010714 | U49: 1.751320596 | V49: 1.760218508 | W49: 1.780734948 | X49: 1.83624607 | Y49: 1.868102345
A50: 0 | F50: 0.0399377709 | G50: 0.3510135856 | H50: 0.6031879959 | I50: 0.7497478375 | J50: 0.9309114381 | K50: 1.096310787 | L50: 1.150625128 | M50: 1.291552734 | N50: 1.369517433 | O50: 1.426832822 | P50: 1.478156678 | Q50: 1.544825303 | R50: 1.576276848 | S50: 1.65198295 | T50: 1.678025108 | U50: 1.759257636 | V50: 1.762872616 | W50: 1.785223236 | X50: 1.841981672 | Y50: 1.86993842
A51: 0 | F51: 0.0423048516 | G51: 0.3547699633 | H51: 0.6038893072 | I51: 0.7513393236 | J51: 0.9322988365 | K51: 1.097137224 | L51: 1.153895436 | M51: 1.293936649 | N51: 1.371343625 | O51: 1.434867246 | P51: 1.479207966 | Q51: 1.549444732 | R51: 1.577530098 | S51: 1.653031439 | T51: 1.679999171 | U51: 1.764032791 | V51: 1.767353939 | W51: 1.794611367 | X51: 1.849705384 | Y51: 1.878048899
A52: 0 | F52: 0.0426984174 | G52: 0.3581897929 | H52: 0.6080943511 | I52: 0.7524598362 | J52: 0.9358616828 | K52: 1.102022671 | L52: 1.160487982 | M52: 1.303087962 | N52: 1.373579448 | O52: 1.444587208 | P52: 1.479953684 | Q52: 1.551900784 | R52: 1.582894529 | S52: 1.653200078 | T52: 1.681650286 | U52: 1.764292832 | V52: 1.769800568 | W52: 1.797124637 | X52: 1.84981026 | Y52: 1.881864843
A53: 0 | F53: 0.0428160819 | G53: 0.35998834 | H53: 0.6149870255 | I53: 0.7569245482 | J53: 0.9395191871 | K53: 1.102887022 | L53: 1.162702898 | M53: 1.307769711 | N53: 1.37488548 | O53: 1.445593816 | P53: 1.483772908 | Q53: 1.564853638 | R53: 1.583974156 | S53: 1.656034762 | T53: 1.689300357 | U53: 1.766808526 | V53: 1.778268152 | W53: 1.797869381 | X53: 1.852866259 | Y53: 1.88258111
A54: 0.073897098 | F54: 0.0436254209 | G54: 0.3666384477 | H54: 0.615421867 | I54: 0.7657121523 | J54: 0.9415045608 | K54: 1.103774305 | L54: 1.165262515 | M54: 1.311285971 | N54: 1.377549242 | O54: 1.448811663 | P54: 1.486824254 | Q54: 1.564927754 | R54: 1.589784663 | S54: 1.657775255 | T54: 1.69253428 | U54: 1.773757204 | V54: 1.779124446 | W54: 1.798781167 | X54: 1.853336741 | Y54: 1.895796261
A55: 0 | F55: 0.0441187026 | G55: 0.3672278085 | H55: 0.6223417622 | I55: 0.776441791 | J55: 0.9457231844 | K55: 1.104434985 | L55: 1.165792386 | M55: 1.312000966 | N55: 1.384158184 | O55: 1.449922555 | P55: 1.491524305 | Q55: 1.567066073 | R55: 1.595910814 | S55: 1.663658987 | T55: 1.693362522 | U55: 1.774873765 | V55: 1.781246403 | W55: 1.810285016 | X55: 1.859792027 | Y55: 1.903150753
A56: 4.69104092 | F56: 0.0443278765 | G56: 0.3678128665 | H56: 0.6268875872 | I56: 0.7797754363 | J56: 0.9523148859 | K56: 1.110119352 | L56: 1.172536512 | M56: 1.314123213 | N56: 1.386669897 | O56: 1.454907485 | P56: 1.492680323 | Q56: 1.56816441 | R56: 1.599404197 | S56: 1.664642324 | T56: 1.700073019 | U56: 1.774941019 | V56: 1.787248469 | W56: 1.815081971 | X56: 1.864253673 | Y56: 1.904727751
A57: 19.65337849 | F57: 0.0448946921 | G57: 0.3684339619 | H57: 0.6295261611 | I57: 0.7799000586 | J57: 0.9615132338 | K57: 1.111889221 | L57: 1.173452894 | M57: 1.315133231 | N57: 1.388050999 | O57: 1.45755301 | P57: 1.494592246 | Q57: 1.568806075 | R57: 1.599835939 | S57: 1.664709549 | T57: 1.701622482 | U57: 1.782906097 | V57: 1.79008285 | W57: 1.815477709 | X57: 1.868241903 | Y57: 1.905675099
A58: 3.727119609 | F58: 0.0465702268 | G58: 0.3685202023 | H58: 0.6335167213 | I58: 0.7815991837 | J58: 0.966656635 | K58: 1.114343714 | L58: 1.179730153 | M58: 1.315144647 | N58: 1.388994723 | O58: 1.462466945 | P58: 1.496841614 | Q58: 1.570890562 | R58: 1.601960272 | S58: 1.667381801 | T58: 1.701971372 | U58: 1.78323218 | V58: 1.797052899 | W58: 1.815716966 | X58: 1.87015145 | Y58: 1.906024297
A59: 1.637268114 | F59: 0.0496444536 | G59: 0.3686639583 | H59: 0.6346994679 | I59: 0.7921814654 | J59: 0.9757486432 | K59: 1.114447247 | L59: 1.179741406 | M59: 1.316297406 | N59: 1.395941604 | O59: 1.46591742 | P59: 1.497645654 | Q59: 1.571456349 | R59: 1.602233833 | S59: 1.668369219 | T59: 1.706274696 | U59: 1.787240708 | V59: 1.798369444 | W59: 1.820357392 | X59: 1.871228116 | Y59: 1.911088329
A60: 0 | F60: 0.050337398 | G60: 0.370841511 | H60: 0.6392523863 | I60: 0.7923436294 | J60: 0.9763632389 | K60: 1.130012822 | L60: 1.180266556 | M60: 1.320150206 | N60: 1.399390021 | O60: 1.477642261 | P60: 1.4985279 | Q60: 1.576842072 | R60: 1.60224786 | S60: 1.670946542 | T60: 1.708266421 | U60: 1.788197437 | V60: 1.802526225 | W60: 1.820891303 | X60: 1.875265832 | Y60: 1.914634442
A61: 0 | F61: 0.0546004144 | G61: 0.372001146 | H61: 0.6404833029 | I61: 0.7933643172 | J61: 0.980180498 | K61: 1.133747611 | L61: 1.191359964 | M61: 1.320299179 | N61: 1.400043531 | O61: 1.48075284 | P61: 1.499938355 | Q61: 1.577076373 | R61: 1.603756764 | S61: 1.671831834 | T61: 1.709493099 | U61: 1.789552704 | V61: 1.803222269 | W61: 1.828971795 | X61: 1.877144054 | Y61: 1.920324685
A62: 12.53444524 | F62: 0.058019624 | G62: 0.3723737929 | H62: 0.6481743917 | I62: 0.798301717 | J62: 0.9905078352 | K62: 1.138054691 | L62: 1.192726431 | M62: 1.323218548 | N62: 1.401724432 | O62: 1.482031574 | P62: 1.506439888 | Q62: 1.578274798 | R62: 1.605597454 | S62: 1.675519951 | T62: 1.710750864 | U62: 1.790993123 | V62: 1.807271869 | W62: 1.83110751 | X62: 1.879373734 | Y62: 1.920714768
A63: 4.543119705 | F63: 0.0585050302 | G63: 0.3752527865 | H63: 0.6489326605 | I63: 0.8016706434 | J63: 0.9913493998 | K63: 1.139346537 | L63: 1.195501069 | M63: 1.328204717 | N63: 1.406198392 | O63: 1.48216977 | P63: 1.515083394 | Q63: 1.578899169 | R63: 1.606479806 | S63: 1.676732462 | T63: 1.713986779 | U63: 1.791834377 | V63: 1.808773822 | W63: 1.834071733 | X63: 1.880614015 | Y63: 1.921083674
A64: 0 | F64: 0.059913223 | G64: 0.3762599589 | H64: 0.6499794996 | I64: 0.802919592 | J64: 0.9936933092 | K64: 1.141835549 | L64: 1.195625054 | M64: 1.330386424 | N64: 1.406477746 | O64: 1.482703053 | P64: 1.517972511 | Q64: 1.583781355 | R64: 1.612341654 | S64: 1.677630118 | T64: 1.718055521 | U64: 1.804275542 | V64: 1.813239892 | W64: 1.835873767 | X64: 1.885602806 | Y64: 1.925191088
A65: 3.860991878 | F65: 0.0608457786 | G65: 0.3776717043 | H65: 0.651382948 | I65: 0.8040742542 | J65: 0.9947670246 | K65: 1.14977206 | L65: 1.197309742 | M65: 1.33368779 | N65: 1.41324306 | O65: 1.484421422 | P65: 1.519996474 | Q65: 1.590332532 | R65: 1.621272983 | S65: 1.680265979 | T65: 1.71846505 | U65: 1.805949782 | V65: 1.814203667 | W65: 1.838419916 | X65: 1.887705772 | Y65: 1.92712381
A66: 0 | F66: 0.062022885 | G66: 0.3789208071 | H66: 0.6565380245 | I66: 0.804293084 | J66: 0.9972967199 | K66: 1.152677161 | L66: 1.200480662 | M66: 1.33527042 | N66: 1.41429139 | O66: 1.485821184 | P66: 1.525066093 | Q66: 1.591022259 | R66: 1.624273056 | S66: 1.682225168 | T66: 1.719153074 | U66: 1.807285587 | V66: 1.814261753 | W66: 1.839211911 | X66: 1.888607992 | Y66: 1.928235259
A67: 0 | F67: 0.0647882363 | G67: 0.3836270621 | H67: 0.6570343084 | I67: 0.8092449426 | J67: 0.9978766483 | K67: 1.155151629 | L67: 1.202686294 | M67: 1.335870036 | N67: 1.415991811 | O67: 1.493603598 | P67: 1.5270537 | Q67: 1.591476812 | R67: 1.626659766 | S67: 1.682309117 | T67: 1.722239018 | U67: 1.807599468 | V67: 1.817125295 | W67: 1.839500908 | X67: 1.888932491 | Y67: 1.93475823
A68: 0.079138924 | F68: 0.0658696126 | G68: 0.3856237784 | H68: 0.6595967256 | I68: 0.8229895905 | J68: 0.9983204343 | K68: 1.158782229 | L68: 1.20322435 | M68: 1.339506987 | N68: 1.422491443 | O68: 1.495435177 | P68: 1.527691033 | Q68: 1.594582448 | R68: 1.628994436 | S68: 1.682514971 | T68: 1.726384451 | U68: 1.809790963 | V68: 1.821594199 | W68: 1.83975329 | X68: 1.893911667 | Y68: 1.935331421
A69: 0 | F69: 0.068748329 | G69: 0.3862411358 | H69: 0.6632773654 | I69: 0.8238457706 | J69: 1.00067206 | K69: 1.159833093 | L69: 1.208522482 | M69: 1.343229328 | N69: 1.423776079 | O69: 1.501763761 | P69: 1.531481819 | Q69: 1.597309034 | R69: 1.632207011 | S69: 1.682914715 | T69: 1.728215117 | U69: 1.813122748 | V69: 1.82718288 | W69: 1.841070855 | X69: 1.898535817 | Y69: 1.936340762
A70: 0.014377328 | F70: 0.0728379698 | G70: 0.3863976336 | H70: 0.6645350567 | I70: 0.8254559888 | J70: 1.001368425 | K70: 1.159950929 | L70: 1.212694751 | M70: 1.345471159 | N70: 1.424812164 | O70: 1.501789512 | P70: 1.532084238 | Q70: 1.598021963 | R70: 1.632590381 | S70: 1.684872066 | T70: 1.728853748 | U70: 1.815485843 | V70: 1.828010923 | W70: 1.845301431 | X70: 1.900079668 | Y70: 1.938005073
A71: 0 | F71: 0.0733967616 | G71: 0.3873254254 | H71: 0.6659493475 | I71: 0.8275335941 | J71: 1.001526027 | K71: 1.16394417 | L71: 1.213026029 | M71: 1.347772039 | N71: 1.431191826 | O71: 1.502810073 | P71: 1.53649076 | Q71: 1.6018451 | R71: 1.635481137 | S71: 1.686214605 | T71: 1.730787872 | U71: 1.81851919 | V71: 1.829116211 | W71: 1.846954194 | X71: 1.901483268 | Y71: 1.938030497
A72: 0 | F72: 0.0738397283 | G72: 0.3901597664 | H72: 0.6728228767 | I72: 0.830050152 | J72: 1.005740519 | K72: 1.169302951 | L72: 1.213648471 | M72: 1.354145166 | N72: 1.434072254 | O72: 1.504037624 | P72: 1.539901345 | Q72: 1.606855552 | R72: 1.640220793 | S72: 1.687632368 | T72: 1.7312068 | U72: 1.818713881 | V72: 1.832818538 | W72: 1.850541051 | X72: 1.906228365 | Y72: 1.941012238
A73: 0 | F73: 0.0742741632 | G73: 0.3943742638 | H73: 0.6732092418 | I73: 0.8315486828 | J73: 1.009731023 | K73: 1.177211078 | L73: 1.2161865 | M73: 1.358051866 | N73: 1.434170545 | O73: 1.505660411 | P73: 1.540470897 | Q73: 1.607742122 | R73: 1.640516414 | S73: 1.687825278 | T73: 1.731633622 | U73: 1.820596312 | V73: 1.834765974 | W73: 1.852975045 | X73: 1.90652453 | Y73: 1.94142768
A74: 4.822198824 | F74: 0.074787761 | G74: 0.3981359221 | H74: 0.6736923401 | I74: 0.8352359979 | J74: 1.010238999 | K74: 1.17759674 | L74: 1.22148241 | M74: 1.364961758 | N74: 1.435141922 | O74: 1.506145783 | P74: 1.544103374 | Q74: 1.608850982 | R74: 1.641639568 | S74: 1.690515113 | T74: 1.733594146 | U74: 1.822019237 | V74: 1.838707698 | W74: 1.854298564 | X74: 1.90701383 | Y74: 1.948876095
A75: 1.794732453 | F75: 0.0749076323 | G75: 0.3989656362 | H75: 0.6764678519 | I75: 0.8410863383 | J75: 1.013870433 | K75: 1.177900228 | L75: 1.222726675 | M75: 1.367679543 | N75: 1.436207182 | O75: 1.509714357 | P75: 1.548254102 | Q75: 1.609506296 | R75: 1.643326853 | S75: 1.692975749 | T75: 1.735003839 | U75: 1.827543304 | V75: 1.840319738 | W75: 1.865883909 | X75: 1.910708263 | Y75: 1.953796014
A76: 0 | F76: 0.0784650548 | G76: 0.4010022738 | H76: 0.6764686457 | I76: 0.8451711002 | J76: 1.017734611 | K76: 1.178997676 | L76: 1.226059374 | M76: 1.370108812 | N76: 1.436980672 | O76: 1.510583795 | P76: 1.553258268 | Q76: 1.610323132 | R76: 1.643968824 | S76: 1.693779198 | T76: 1.744685402 | U76: 1.828998812 | V76: 1.843774438 | W76: 1.867901117 | X76: 1.911084935 | Y76: 1.955568139
A77: 4.917026424 | F77: 0.0790482822 | G77: 0.4031755873 | H77: 0.6850073729 | I77: 0.8461478439 | J77: 1.018504693 | K77: 1.183852678 | L77: 1.231735493 | M77: 1.372676702 | N77: 1.440334634 | O77: 1.515389731 | P77: 1.554080623 | Q77: 1.615308801 | R77: 1.64888692 | S77: 1.694469645 | T77: 1.744847379 | U77: 1.829881141 | V77: 1.846318979 | W77: 1.870623176 | X77: 1.912301742 | Y77: 1.95911244
A78: 0 | F78: 0.0794434458 | G78: 0.4055388946 | H78: 0.6852150844 | I78: 0.8482576564 | J78: 1.018929896 | K78: 1.184022142 | L78: 1.235285636 | M78: 1.372746907 | N78: 1.441440131 | O78: 1.516004304 | P78: 1.556613456 | Q78: 1.618652388 | R78: 1.651194845 | S78: 1.694872623 | T78: 1.748083545 | U78: 1.831861132 | V78: 1.848463074 | W78: 1.875411631 | X78: 1.916124964 | Y78: 1.961209765
A79: 0 | F79: 0.0805372458 | G79: 0.4064289234 | H79: 0.6875604264 | I79: 0.8490883267 | J79: 1.020871249 | K79: 1.186729453 | L79: 1.235714973 | M79: 1.373678895 | N79: 1.448720325 | O79: 1.521981209 | P79: 1.560530459 | Q79: 1.619479324 | R79: 1.65497414 | S79: 1.695853296 | T79: 1.758351094 | U79: 1.832499707 | V79: 1.850229939 | W79: 1.878425911 | X79: 1.917644846 | Y79: 1.964498419
A80: 0.391431109 | F80: 0.0807668798 | G80: 0.4072234274 | H80: 0.6892435583 | I80: 0.8519329419 | J80: 1.021284146 | K80: 1.189135752 | L80: 1.241417779 | M80: 1.374117244 | N80: 1.450197718 | O80: 1.522114257 | P80: 1.562921951 | Q80: 1.619965623 | R80: 1.655884571 | S80: 1.6975088 | T80: 1.75908549 | U80: 1.835778218 | V80: 1.851465616 | W80: 1.878737924 | X80: 1.92009638 | Y80: 1.964918401
A81: 0 | F81: 0.0809198127 | G81: 0.4100666757 | H81: 0.6933166875 | I81: 0.8598038235 | J81: 1.023014246 | K81: 1.192016452 | L81: 1.244696625 | M81: 1.376567775 | N81: 1.450407789 | O81: 1.523608575 | P81: 1.564755839 | Q81: 1.621117403 | R81: 1.665021829 | S81: 1.701398187 | T81: 1.762339846 | U81: 1.837026422 | V81: 1.851943892 | W81: 1.878871986 | X81: 1.921772417 | Y81: 1.965961664
A82: 0 | F82: 0.0813815388 | G82: 0.4111979213 | H82: 0.6964667292 | I82: 0.8616777064 | J82: 1.024253654 | K82: 1.194809164 | L82: 1.247084611 | M82: 1.380060702 | N82: 1.455356022 | O82: 1.524548335 | P82: 1.564970828 | Q82: 1.635694009 | R82: 1.666097689 | S82: 1.705563181 | T82: 1.770124473 | U82: 1.83824071 | V82: 1.858748384 | W82: 1.879835684 | X82: 1.924292348 | Y82: 1.968163624
A83: 3.965080512 | F83: 0.0814331773 | G83: 0.4118806613 | H83: 0.6974071102 | I83: 0.8633828023 | J83: 1.032758732 | K83: 1.195164365 | L83: 1.248939869 | M83: 1.389872635 | N83: 1.46326205 | O83: 1.538011489 | P83: 1.569744861 | Q83: 1.638753426 | R83: 1.666146577 | S83: 1.714368657 | T83: 1.770472644 | U83: 1.838285232 | V83: 1.859177788 | W83: 1.88010427 | X83: 1.924346898 | Y83: 1.968887726
A84: 0.991750975 | F84: 0.0814354668 | G84: 0.4139563874 | H84: 0.6989912663 | I84: 0.8665241173 | J84: 1.034146783 | K84: 1.195642174 | L84: 1.260737025 | M84: 1.389954769 | N84: 1.464016458 | O84: 1.538380274 | P84: 1.573474993 | Q84: 1.642319103 | R84: 1.66735205 | S84: 1.714797224 | T84: 1.770935216 | U84: 1.839343981 | V84: 1.860305415 | W84: 1.883973536 | X84: 1.926269541 | Y84: 1.97122419
A85: 0 | F85: 0.0859131446 | G85: 0.4147674629 | H85: 0.7000101423 | I85: 0.8692780346 | J85: 1.03661257 | K85: 1.196772476 | L85: 1.261106147 | M85: 1.39063077 | N85: 1.465766419 | O85: 1.539222564 | P85: 1.574892729 | Q85: 1.642868895 | R85: 1.667888424 | S85: 1.717099255 | T85: 1.772013668 | U85: 1.840401052 | V85: 1.86185061 | W85: 1.884037532 | X85: 1.929881002 | Y85: 1.973589155
A86: 0.072466963 | F86: 0.0861286345 | G86: 0.4161185743 | H86: 0.7000918319 | I86: 0.8702004493 | J86: 1.041776679 | K86: 1.199343418 | L86: 1.262999357 | M86: 1.391239695 | N86: 1.467925705 | O86: 1.540616212 | P86: 1.575794491 | Q86: 1.646071888 | R86: 1.668034181 | S86: 1.721192667 | T86: 1.773061809 | U86: 1.843858948 | V86: 1.862054985 | W86: 1.88478646 | X86: 1.930873708 | Y86: 1.975556002
A87: 0.188985429 | F87: 0.0862768125 | G87: 0.416609344 | H87: 0.7020679114 | I87: 0.8722378477 | J87: 1.042846235 | K87: 1.200437175 | L87: 1.264548922 | M87: 1.394016146 | N87: 1.46998963 | O87: 1.541071931 | P87: 1.575853882 | Q87: 1.646404086 | R87: 1.670116774 | S87: 1.728320916 | T87: 1.775003741 | U87: 1.843864806 | V87: 1.862403569 | W87: 1.88552577 | X87: 1.931443248 | Y87: 1.975726601
A88: 0 | F88: 0.0869658336 | G88: 0.4185298287 | H88: 0.7062756219 | I88: 0.8753326383 | J88: 1.056102089 | K88: 1.200766075 | L88: 1.269757109 | M88: 1.400254478 | N88: 1.47410001 | O88: 1.543368574 | P88: 1.575925309 | Q88: 1.649928499 | R88: 1.678402564 | S88: 1.730119565 | T88: 1.776817867 | U88: 1.844723671 | V88: 1.864043774 | W88: 1.889032221 | X88: 1.933590823 | Y88: 1.975765215
A89: 0 | F89: 0.0884266846 | G89: 0.4190341904 | H89: 0.7066119694 | I89: 0.8753591444 | J89: 1.057961788 | K89: 1.201178146 | L89: 1.278964705 | M89: 1.401730059 | N89: 1.476570877 | O89: 1.553606045 | P89: 1.576287629 | Q89: 1.651238235 | R89: 1.679441649 | S89: 1.733733166 | T89: 1.778028913 | U89: 1.844896653 | V89: 1.867284827 | W89: 1.891257336 | X89: 1.933752402 | Y89: 1.984136832
A90: 0 | F90: 0.0911080614 | G90: 0.423260483 | H90: 0.7067494969 | I90: 0.8776418944 | J90: 1.062303264 | K90: 1.204303692 | L90: 1.280678936 | M90: 1.403790058 | N90: 1.478087929 | O90: 1.554353918 | P90: 1.577496067 | Q90: 1.651337156 | R90: 1.680861871 | S90: 1.739755278 | T90: 1.778401605 | U90: 1.844929494 | V90: 1.871493935 | W90: 1.891385927 | X90: 1.936145682 | Y90: 1.987316485
A91: 2.227641447 | F91: 0.0930942417 | G91: 0.4265263958 | H91: 0.7085999724 | I91: 0.8832308682 | J91: 1.068646251 | K91: 1.206840149 | L91: 1.28675154 | M91: 1.410114883 | N91: 1.479688732 | O91: 1.555605388 | P91: 1.577613211 | Q91: 1.65135997 | R91: 1.683730327 | S91: 1.743012763 | T91: 1.778633573 | U91: 1.845310893 | V91: 1.871687194 | W91: 1.900239268 | X91: 1.936604244 | Y91: 1.99244935
A92: 0 | F92: 0.0946621424 | G92: 0.4271419751 | H92: 0.708991191 | I92: 0.8848187524 | J92: 1.071110335 | K92: 1.207783174 | L92: 1.287012374 | M92: 1.413750281 | N92: 1.482534807 | O92: 1.556408981 | P92: 1.580976082 | Q92: 1.654074483 | R92: 1.684572012 | S92: 1.744176879 | T92: 1.78003716 | U92: 1.847150431 | V92: 1.871938915 | W92: 1.900296187 | X92: 1.937541769 | Y92: 1.994308372
A93: 0 | F93: 0.095056086 | G93: 0.4386301568 | H93: 0.7095177839 | I93: 0.8884933727 | J93: 1.072134414 | K93: 1.207864406 | L93: 1.288377074 | M93: 1.4166787 | N93: 1.483563639 | O93: 1.556984969 | P93: 1.582437444 | Q93: 1.655661984 | R93: 1.687142411 | S93: 1.745941194 | T93: 1.785049815 | U93: 1.847413145 | V93: 1.876181163 | W93: 1.901314493 | X93: 1.940676865 | Y93: 1.995191574
A94: 0 | F94: 0.0981775108 | G94: 0.4390056493 | H94: 0.7106245141 | I94: 0.8905211209 | J94: 1.072721353 | K94: 1.209437668 | L94: 1.292207233 | M94: 1.418188601 | N94: 1.483906002 | O94: 1.561963534 | P94: 1.584507968 | Q94: 1.6578996 | R94: 1.688993945 | S94: 1.746482126 | T94: 1.786349519 | U94: 1.854159716 | V94: 1.877789574 | W94: 1.904233319 | X94: 1.941037963 | Y94: 1.999073954
A95: 0 | F95: 0.1002670382 | G95: 0.439840296 | H95: 0.7131679813 | I95: 0.9001853393 | J95: 1.072857959 | K95: 1.221165529 | L95: 1.293909652 | M95: 1.422291927 | N95: 1.485116063 | O95: 1.563410606 | P95: 1.585468534 | Q95: 1.658619105 | R95: 1.694186086 | S95: 1.747247948 | T95: 1.787365788 | U95: 1.855020699 | V95: 1.878054479 | W95: 1.905359762 | X95: 1.943579943 | Y95: 1.999364973
A96: 0.557352297 | F96: 0.1022750224 | G96: 0.44003908 | H96: 0.7154995775 | I96: 0.9011573874 | J96: 1.077332874 | K96: 1.221246553 | L96: 1.293992546 | M96: 1.42280963 | N96: 1.486024766 | O96: 1.563446794 | P96: 1.586174629 | Q96: 1.659198094 | R96: 1.695062697 | S96: 1.749852447 | T96: 1.787969871 | U96: 1.859518818 | V96: 1.885552663 | W96: 1.91223616 | X96: 1.944583816 | Y96: 2.000599683
A97: 1.820754767 | F97: 0.1033837052 | G97: 0.4403153149 | H97: 0.719620308 | I97: 0.9043152027 | J97: 1.077473913 | K97: 1.222744949 | L97: 1.29553444 | M97: 1.423968908 | N97: 1.486300239 | O97: 1.564231822 | P97: 1.587117257 | Q97: 1.660915777 | R97: 1.695858184 | S97: 1.750796931 | T97: 1.789722189 | U97: 1.861375122 | V97: 1.886470424 | W97: 1.912300534 | X97: 1.945868251 | Y97: 2.001946037
A98: 3.143573117 | F98: 0.1051388983 | G98: 0.4431309598 | H98: 0.7244867731 | I98: 0.9049408318 | J98: 1.07956518 | K98: 1.223407213 | L98: 1.296063986 | M98: 1.424757017 | N98: 1.487521616 | O98: 1.565920727 | P98: 1.590421503 | Q98: 1.6618415 | R98: 1.696210206 | S98: 1.752934448 | T98: 1.792085846 | U98: 1.861616135 | V98: 1.889108821 | W98: 1.91371411 | X98: 1.950035573 | Y98: 2.0030564
A99: 2.427492129 | F99: 0.10623049 | G99: 0.4432574515 | H99: 0.7277422753 | I99: 0.9062965175 | J99: 1.084985625 | K99: 1.223550232 | L99: 1.29639796 | M99: 1.427037844 | N99: 1.491994635 | O99: 1.566734852 | P99: 1.591817275 | Q99: 1.66511859 | R99: 1.69661776 | S99: 1.757469915 | T99: 1.795175734 | U99: 1.8623768 | V99: 1.894939052 | W99: 1.915752331 | X99: 1.950204766 | Y99: 2.003079522
A100: 0 | F100: 0.1078796222 | G100: 0.4455792007 | H100: 0.7296042671 | I100: 0.9087318379 | J100: 1.086794598 | K100: 1.224229722 | L100: 1.298449943 | M100: 1.432143436 | N100: 1.494461607 | O100: 1.570809624 | P100: 1.593206712 | Q100: 1.666842871 | R100: 1.696875681 | S100: 1.761450035 | T100: 1.798365008 | U100: 1.864246662 | V100: 1.900711568 | W100: 1.918874924 | X100: 1.951207757 | Y100: 2.005051378
A101: 0 | F101: 0.1081835628 | G101: 0.4459448705 | H101: 0.730061553 | I101: 0.9155781564 | J101: 1.088448881 | K101: 1.226510308 | L101: 1.300089033 | M101: 1.432407 | N101: 1.495008774 | O101: 1.571344532 | P101: 1.595828414 | Q101: 1.672376732 | R101: 1.697470728 | S101: 1.761560956 | T101: 1.798726985 | U101: 1.864294342 | V101: 1.902833235 | W101: 1.918975106 | X101: 1.951539558 | Y101: 2.006320021
A102: 0 | F102: 0.1115364069 | G102: 0.4503440528 | H102: 0.7338554084 | I102: 0.9168240165 | J102: 1.089010035 | K102: 1.234229446 | L102: 1.301006959 | M102: 1.433041261 | N102: 1.495582278 | O102: 1.571519165 | P102: 1.596405344 | Q102: 1.67399601 | R102: 1.699231252 | S102: 1.762298794 | T102: 1.80078301 | U102: 1.869768562 | V102: 1.903259222 | W102: 1.922076254 | X102: 1.952897629 | Y102: 2.010357403
A103: 3.116711838 | F103: 0.1115573265 | G103: 0.4540509095 | H103: 0.7356573438 | I103: 0.919666376 | J103: 1.093325806 | K103: 1.236337327 | L103: 1.305084146 | M103: 1.434639724 | N103: 1.495740248 | O103: 1.571598597 | P103: 1.600604348 | Q103: 1.676455156 | R103: 1.700876795 | S103: 1.765186306 | T103: 1.807453484 | U103: 1.875904316 | V103: 1.904925018 | W103: 1.925678777 | X103: 1.955248085 | Y103: 2.011455632
A104: 0 | F104: 0.1127651897 | G104: 0.4545733873 | H104: 0.7429614838 | I104: 0.9223538845 | J104: 1.094016464 | K104: 1.241384125 | L104: 1.306088548 | M104: 1.435273845 | N104: 1.500934088 | O104: 1.571963739 | P104: 1.603289338 | Q104: 1.677660827 | R104: 1.703090515 | S104: 1.766840264 | T104: 1.809229907 | U104: 1.876968988 | V104: 1.905153109 | W104: 1.938266522 | X104: 1.955275353 | Y104: 2.013287317
A105: 0 | F105: 0.1131998965 | G105: 0.4562182217 | H105: 0.7431907693 | I105: 0.922778172 | J105: 1.099990734 | K105: 1.241731812 | L105: 1.306970494 | M105: 1.435969585 | N105: 1.505977046 | O105: 1.576442174 | P105: 1.603963268 | Q105: 1.678476589 | R105: 1.704382499 | S105: 1.768479474 | T105: 1.813324765 | U105: 1.877860381 | V105: 1.90531867 | W105: 1.939024813 | X105: 1.959123827 | Y105: 2.015487708
A106: 0 | F106: 0.1152582489 | G106: 0.4588905005 | H106: 0.7460042774 | I106: 0.9311671592 | J106: 1.100255833 | K106: 1.241895624 | L106: 1.307764974 | M106: 1.438719592 | N106: 1.506562453 | O106: 1.576777199 | P106: 1.604736473 | Q106: 1.682810146 | R106: 1.716145256 | S106: 1.76947142 | T106: 1.81477965 | U106: 1.879549394 | V106: 1.909301258 | W106: 1.942824053 | X106: 1.960081683 | Y106: 2.017611639
A107: 0 | F107: 0.1156965512 | G107: 0.4649778673 | H107: 0.7472613436 | I107: 0.9351722162 | J107: 1.103484689 | K107: 1.242801521 | L107: 1.311070342 | M107: 1.439908108 | N107: 1.510337756 | O107: 1.582510198 | P107: 1.607252692 | Q107: 1.684787479 | R107: 1.717721712 | S107: 1.769990255 | T107: 1.816683146 | U107: 1.880395751 | V107: 1.910269998 | W107: 1.944846959 | X107: 1.963085202 | Y107: 2.020499903
A108: 0 | F108: 0.1157584091 | G108: 0.4668612694 | H108: 0.7474028498 | I108: 0.9364504287 | J108: 1.108585925 | K108: 1.243694455 | L108: 1.311674576 | M108: 1.44083697 | N108: 1.511023752 | O108: 1.583765073 | P108: 1.608611839 | Q108: 1.686033264 | R108: 1.71908002 | S108: 1.770869319 | T108: 1.820760349 | U108: 1.881639875 | V108: 1.910865057 | W108: 1.945760147 | X108: 1.96560337 | Y108: 2.023349896
A109: 0.287503473 | F109: 0.1168575717 | G109: 0.4690348367 | H109: 0.7476524421 | I109: 0.9369206792 | J109: 1.110246149 | K109: 1.244400911 | L109: 1.311811435 | M109: 1.441739161 | N109: 1.512810934 | O109: 1.585145979 | P109: 1.611318307 | Q109: 1.686409859 | R109: 1.721501712 | S109: 1.77096747 | T109: 1.821762768 | U109: 1.883285223 | V109: 1.914814001 | W109: 1.946404727 | X109: 1.968890175 | Y109: 2.023568265
A110: 50.59819496 | F110: 0.1176273117 | G110: 0.4705254371 | H110: 0.7500544771 | I110: 0.9378275365 | J110: 1.114366052 | K110: 1.244972667 | L110: 1.312639522 | M110: 1.442157971 | N110: 1.514477168 | O110: 1.585628767 | P110: 1.615312427 | Q110: 1.688800954 | R110: 1.731292318 | S110: 1.775540222 | T110: 1.822580526 | U110: 1.883776142 | V110: 1.915862326 | W110: 1.946675398 | X110: 1.969869703 | Y110: 2.024061596
A111: 0 | F111: 0.1176761164 | G111: 0.4707353171 | H111: 0.7515518265 | I111: 0.940926508 | J111: 1.115363859 | K111: 1.250421407 | L111: 1.31482505 | M111: 1.442380878 | N111: 1.51453433 | O111: 1.590530333 | P111: 1.616097572 | Q111: 1.689181561 | R111: 1.737984521 | S111: 1.777019436 | T111: 1.825154652 | U111: 1.884065132 | V111: 1.918894038 | W111: 1.946967791 | X111: 1.970094162 | Y111: 2.024198612
A112: 7.11334473 | F112: 0.1182200029 | G112: 0.4731823016 | H112: 0.7531611513 | I112: 0.9425124763 | J112: 1.116676343 | K112: 1.254660565 | L112: 1.315046729 | M112: 1.44409286 | N112: 1.51918185 | O112: 1.591625372 | P112: 1.622664661 | Q112: 1.69203218 | R112: 1.743887663 | S112: 1.777845868 | T112: 1.825235706 | U112: 1.884585103 | V112: 1.919206248 | W112: 1.948800183 | X112: 1.972534107 | Y112: 2.025921407
A113: 0.033370341 | F113: 0.1185487627 | G113: 0.4732950078 | H113: 0.753745676 | I113: 0.9502609384 | J113: 1.118129732 | K113: 1.255560696 | L113: 1.31520277 | M113: 1.444691886 | N113: 1.520438274 | O113: 1.592566621 | P113: 1.627375764 | Q113: 1.694147956 | R113: 1.744063431 | S113: 1.779003637 | T113: 1.825863385 | U113: 1.88523774 | V113: 1.920887713 | W113: 1.951734292 | X113: 1.975128962 | Y113: 2.025971664
A114: 0.086449195 | F114: 0.1208467783 | G114: 0.4740138535 | H114: 0.7542140899 | I114: 0.9514078358 | J114: 1.118852618 | K114: 1.256304033 | L114: 1.315304391 | M114: 1.445227911 | N114: 1.520695521 | O114: 1.593009699 | P114: 1.633931883 | Q114: 1.694905815 | R114: 1.7459691 | S114: 1.789693252 | T114: 1.831863486 | U114: 1.887719041 | V114: 1.922742218 | W114: 1.953220778 | X114: 1.975613064 | Y114: 2.02623711
A115: 0.887551227 | F115: 0.1216865274 | G115: 0.4746093885 | H115: 0.7567264095 | I115: 0.9524385934 | J115: 1.123470038 | K115: 1.256600643 | L115: 1.319245442 | M115: 1.451854053 | N115: 1.521860612 | O115: 1.59543049 | P115: 1.637397402 | Q115: 1.695832101 | R115: 1.746567658 | S115: 1.791412067 | T115: 1.835101714 | U115: 1.888289678 | V115: 1.928655887 | W115: 1.95428769 | X115: 1.977174966 | Y115: 2.026584588
A116: 0.595207234 | F116: 0.1218130347 | G116: 0.4760153829 | H116: 0.7628170127 | I116: 0.9537601984 | J116: 1.127832553 | K116: 1.259327987 | L116: 1.320190003 | M116: 1.453879476 | N116: 1.521941199 | O116: 1.595518094 | P116: 1.639730575 | Q116: 1.700068653 | R116: 1.746614698 | S116: 1.793290679 | T116: 1.836485764 | U116: 1.889016812 | V116: 1.92943884 | W116: 1.957242041 | X116: 1.979502548 | Y116: 2.029823398
A117: 0 | F117: 0.123071273 | G117: 0.4761012574 | H117: 0.7643680399 | I117: 0.9539946907 | J117: 1.128541455 | K117: 1.261184622 | L117: 1.320659639 | M117: 1.458132789 | N117: 1.523036805 | O117: 1.595637333 | P117: 1.639999293 | Q117: 1.700939684 | R117: 1.746777479 | S117: 1.795531694 | T117: 1.840935073 | U117: 1.890262072 | V117: 1.929467182 | W117: 1.958320732 | X117: 1.983288725 | Y117: 2.030687747
A118: 2.018324392 | F118: 0.123262658 | G118: 0.4781912464 | H118: 0.7645380777 | I118: 0.954197313 | J118: 1.130269732 | K118: 1.26177883 | L118: 1.322462377 | M118: 1.459347424 | N118: 1.523669727 | O118: 1.596207528 | P118: 1.642161918 | Q118: 1.704961398 | R118: 1.748695337 | S118: 1.796993152 | T118: 1.841093956 | U118: 1.892963045 | V118: 1.929525739 | W118: 1.95919169 | X118: 1.986836176 | Y118: 2.03400861
A119: 0 | F119: 0.1242748905 | G119: 0.4785367986 | H119: 0.7649956869 | I119: 0.9569978027 | J119: 1.130863904 | K119: 1.264787267 | L119: 1.325732117 | M119: 1.460091553 | N119: 1.524149778 | O119: 1.59992182 | P119: 1.642232124 | Q119: 1.706705906 | R119: 1.753408965 | S119: 1.797750113 | T119: 1.841880535 | U119: 1.893219981 | V119: 1.931641703 | W119: 1.962461266 | X119: 1.9871181 | Y119: 2.034483065
A120: 0 | F120: 0.1276935123 | G120: 0.4791808892 | H120: 0.7693259499 | I120: 0.9577050576 | J120: 1.133938666 | K120: 1.265686324 | L120: 1.327199178 | M120: 1.462410845 | N120: 1.52677904 | O120: 1.601053639 | P120: 1.64531906 | Q120: 1.706838171 | R120: 1.759425154 | S120: 1.798230671 | T120: 1.845456852 | U120: 1.895529022 | V120: 1.934000318 | W120: 1.962705628 | X120: 1.988659114 | Y120: 2.03603551
A121: 13.79343608 | F121: 0.1279477351 | G121: 0.4796052416 | H121: 0.7718556561 | I121: 0.9580086253 | J121: 1.136645514 | K121: 1.266285212 | L121: 1.32751101 | M121: 1.463091265 | N121: 1.530302571 | O121: 1.603302772 | P121: 1.646124088 | Q121: 1.709479263 | R121: 1.760183149 | S121: 1.799027368 | T121: 1.84998728 | U121: 1.896467202 | V121: 1.934018477 | W121: 1.96492689 | X121: 1.9898015 | Y121: 2.037032736
A122: 3.424806331 | F122: 0.1282023838 | G122: 0.4816975297 | H122: 0.7735848209 | I122: 0.9585603298 | J122: 1.137502863 | K122: 1.268659975 | L122: 1.331722743 | M122: 1.464261596 | N122: 1.531955093 | O122: 1.60706854 | P122: 1.647632722 | Q122: 1.712009432 | R122: 1.760644848 | S122: 1.801702823 | T122: 1.852914698 | U122: 1.896934401 | V122: 1.936942253 | W122: 1.966322072 | X122: 1.991372771 | Y122: 2.041461137
A123: 0.55178817 | F123: 0.1286273383 | G123: 0.4826645617 | H123: 0.7738877429 | I123: 0.9586410294 | J123: 1.137810856 | K123: 1.269365809 | L123: 1.334295939 | M123: 1.464974215 | N123: 1.533990639 | O123: 1.610226897 | P123: 1.651814972 | Q123: 1.7159775 | R123: 1.763703389 | S123: 1.80256532 | T123: 1.853599176 | U123: 1.898198444 | V123: 1.937106305 | W123: 1.968040163 | X123: 1.993269329 | Y123: 2.041990526
A124: 0 | F124: 0.1289083784 | G124: 0.483450692 | H124: 0.775539704 | I124: 0.9605640481 | J124: 1.138479228 | K124: 1.273715146 | L124: 1.337843845 | M124: 1.465196163 | N124: 1.534140102 | O124: 1.61280626 | P124: 1.653144429 | Q124: 1.717931818 | R124: 1.768013546 | S124: 1.803872541 | T124: 1.854672239 | U124: 1.898413854 | V124: 1.937886838 | W124: 1.970636758 | X124: 1.995794262 | Y124: 2.043499297
A125: 2.224180844 | F125: 0.1311061746 | G125: 0.4838723839 | H125: 0.7761266546 | I125: 0.9642249231 | J125: 1.140060496 | K125: 1.275254892 | L125: 1.338150199 | M125: 1.46527356 | N125: 1.539542751 | O125: 1.617134855 | P125: 1.653843762 | Q125: 1.719603974 | R125: 1.768258215 | S125: 1.804942711 | T125: 1.859187368 | U125: 1.899470684 | V125: 1.941753201 | W125: 1.970908458 | X125: 1.996236655 | Y125: 2.044585806
A126: 1.891381925 | F126: 0.1320447055 | G126: 0.4848910836 | H126: 0.7774411217 | I126: 0.9654753875 | J126: 1.142842685 | K126: 1.279650509 | L126: 1.340161869 | M126: 1.468432288 | N126: 1.542376765 | O126: 1.618592376 | P126: 1.654405341 | Q126: 1.719721987 | R126: 1.770940857 | S126: 1.808467894 | T126: 1.860537953 | U126: 1.902351166 | V126: 1.944541605 | W126: 1.970954156 | X126: 1.997161043 | Y126: 2.04623877
A127: 2.539535418 | F127: 0.1324504017 | G127: 0.4860253026 | H127: 0.7781102464 | I127: 0.968155915 | J127: 1.143771943 | K127: 1.282429223 | L127: 1.343608107 | M127: 1.469460867 | N127: 1.544073002 | O127: 1.619815044 | P127: 1.65471324 | Q127: 1.721431234 | R127: 1.771206596 | S127: 1.815325761 | T127: 1.862623152 | U127: 1.90340361 | V127: 1.946450721 | W127: 1.973045751 | X127: 1.997897869 | Y127: 2.04653404
A128: 0.087607071 | F128: 0.1330646761 | G128: 0.4865567888 | H128: 0.7788985208 | I128: 0.9715662281 | J128: 1.145163502 | K128: 1.285201995 | L128: 1.344545684 | M128: 1.47044813 | N128: 1.547217852 | O128: 1.621934626 | P128: 1.655707277 | Q128: 1.722262423 | R128: 1.7729733 | S128: 1.81628455 | T128: 1.86502425 | U128: 1.904699248 | V128: 1.947463056 | W128: 1.973857539 | X128: 1.998960017 | Y128: 2.046767678
A129: 0 | F129: 0.1333081887 | G129: 0.4871355244 | H129: 0.7803229772 | I129: 0.9728155538 | J129: 1.146909009 | K129: 1.287551241 | L129: 1.350978134 | M129: 1.474718571 | N129: 1.549333065 | O129: 1.622365856 | P129: 1.656361839 | Q129: 1.723551373 | R129: 1.776980291 | S129: 1.817468403 | T129: 1.865394439 | U129: 1.906143948 | V129: 1.949289646 | W129: 1.97476345 | X129: 2.00171117 | Y129: 2.046924174
A130: 0 | F130: 0.1334225735 | G130: 0.4937696538 | H130: 0.7820113931 | I130: 0.9736194303 | J130: 1.147308223 | K130: 1.288254442 | L130: 1.354717982 | M130: 1.475176753 | N130: 1.552595822 | O130: 1.625067543 | P130: 1.656742111 | Q130: 1.725454749 | R130: 1.778420696 | S130: 1.818538988 | T130: 1.867174118 | U130: 1.906478806 | V130: 1.951167461 | W130: 1.977197806 | X130: 2.002946895 | Y130: 2.048429654
A131: 7.765355069 | F131: 0.1367875351 | G131: 0.4947547559 | H131: 0.7824596647 | I131: 0.9753534063 | J131: 1.150107944 | K131: 1.290040879 | L131: 1.357256945 | M131: 1.476420091 | N131: 1.557066091 | O131: 1.626673368 | P131: 1.657874964 | Q131: 1.725629811 | R131: 1.780108289 | S131: 1.820031192 | T131: 1.867263005 | U131: 1.906680457 | V131: 1.952774291 | W131: 1.979477732 | X131: 2.003123061 | Y131: 2.04898706
A132: 0 | F132: 0.1371189172 | G132: 0.495941687 | H132: 0.7898717727 | I132: 0.9754654704 | J132: 1.151148044 | K132: 1.291711826 | L132: 1.360243745 | M132: 1.478544489 | N132: 1.558798256 | O132: 1.627042507 | P132: 1.659428254 | Q132: 1.726476523 | R132: 1.780518674 | S132: 1.822922045 | T132: 1.870266134 | U132: 1.909062803 | V132: 1.955315977 | W132: 1.983188202 | X132: 2.003739385 | Y132: 2.049688533
A133: 0 | F133: 0.1372032336 | G133: 0.4961839289 | H133: 0.7903078259 | I133: 0.978747167 | J133: 1.152307556 | K133: 1.29251307 | L133: 1.361023754 | M133: 1.479048011 | N133: 1.561178284 | O133: 1.627662042 | P133: 1.660124352 | Q133: 1.731747534 | R133: 1.783333656 | S133: 1.825394821 | T133: 1.871568739 | U133: 1.909086567 | V133: 1.955609696 | W133: 1.983685594 | X133: 2.004064365 | Y133: 2.05138198
A134: 0 | F134: 0.1373185496 | G134: 0.4971835978 | H134: 0.7921996818 | I134: 0.9791337966 | J134: 1.154448935 | K134: 1.305996079 | L134: 1.361203112 | M134: 1.485783363 | N134: 1.563564521 | O134: 1.628926266 | P134: 1.660385161 | Q134: 1.731753708 | R134: 1.784578425 | S134: 1.827120016 | T134: 1.87251657 | U134: 1.909377057 | V134: 1.95753754 | W134: 1.985683756 | X134: 2.004464056 | Y134: 2.052184187
A135: 0 | F135: 0.1375281824 | G135: 0.4983021147 | H135: 0.7934481444 | I135: 0.9813591502 | J135: 1.1569233 | K135: 1.307928074 | L135: 1.362471321 | M135: 1.488566027 | N135: 1.563808295 | O135: 1.630228664 | P135: 1.660539879 | Q135: 1.733717672 | R135: 1.785380208 | S135: 1.827744582 | T135: 1.872732159 | U135: 1.909995034 | V135: 1.959149267 | W135: 1.986850934 | X135: 2.004808776 | Y135: 2.054068442
A136: 2.602988997 | F136: 0.1379252954 | G136: 0.5011118412 | H136: 0.794068742 | I136: 0.9817296878 | J136: 1.160898551 | K136: 1.309028533 | L136: 1.362513032 | M136: 1.489281486 | N136: 1.56448246 | O136: 1.630957782 | P136: 1.662930227 | Q136: 1.734358796 | R136: 1.788007843 | S136: 1.836357868 | T136: 1.875557857 | U136: 1.910035797 | V136: 1.963285405 | W136: 1.988176218 | X136: 2.007562166 | Y136: 2.055127121
A137: 14.35133134 | F137: 0.1388396724 | G137: 0.5079247 | H137: 0.7957650481 | I137: 0.9825096665 | J137: 1.162713703 | K137: 1.310026285 | L137: 1.363025233 | M137: 1.490039394 | N137: 1.566402965 | O137: 1.631386892 | P137: 1.665415063 | Q137: 1.736627536 | R137: 1.791252557 | S137: 1.836609892 | T137: 1.876120747 | U137: 1.910213022 | V137: 1.963605739 | W137: 1.989174872 | X137: 2.007764559 | Y137: 2.056066126
A138: 0 | F138: 0.1396752206 | G138: 0.5115431226 | H138: 0.7963310157 | I138: 0.9830237716 | J138: 1.163495441 | K138: 1.310164027 | L138: 1.363372884 | M138: 1.491395449 | N138: 1.567519282 | O138: 1.632517799 | P138: 1.669135181 | Q138: 1.740868875 | R138: 1.792644465 | S138: 1.837674695 | T138: 1.876503738 | U138: 1.916379363 | V138: 1.965041036 | W138: 1.990545807 | X138: 2.007958574 | Y138: 2.056380316
A139: 0 | F139: 0.1429739251 | G139: 0.5119579766 | H139: 0.7963325581 | I139: 0.9840503497 | J139: 1.165198143 | K139: 1.310892817 | L139: 1.366381086 | M139: 1.495458473 | N139: 1.568617028 | O139: 1.633330744 | P139: 1.671031791 | Q139: 1.741236374 | R139: 1.794185005 | S139: 1.8380427 | T139: 1.878662907 | U139: 1.916620187 | V139: 1.967314508 | W139: 1.990605641 | X139: 2.008103066 | Y139: 2.058073592
A140: 2.856721318 | F140: 0.1441628883 | G140: 0.5124702061 | H140: 0.7979376255 | I140: 0.9850798187 | J140: 1.16958817 | K140: 1.311042104 | L140: 1.367233176 | M140: 1.496776425 | N140: 1.570151295 | O140: 1.636014497 | P140: 1.674251148 | Q140: 1.742846881 | R140: 1.795072364 | S140: 1.83843507 | T140: 1.878934657 | U140: 1.91699691 | V140: 1.96765051 | W140: 1.993825633 | X140: 2.009589662 | Y140: 2.059053012
A141: 2.014047768 | F141: 0.1449177227 | G141: 0.512808988 | H141: 0.7983499393 | I141: 0.9887165091 | J141: 1.172321846 | K141: 1.313177819 | L141: 1.367437813 | M141: 1.498178841 | N141: 1.571406935 | O141: 1.636527808 | P141: 1.674644622 | Q141: 1.744996144 | R141: 1.795636972 | S141: 1.839064985 | T141: 1.881360155 | U141: 1.917212395 | V141: 1.970425121 | W141: 1.993897692 | X141: 2.012062798 | Y141: 2.059404874
A142: 0 | F142: 0.1451237484 | G142: 0.5137490816 | H142: 0.7993750461 | I142: 0.9901342629 | J142: 1.174315978 | K142: 1.316614527 | L142: 1.368443344 | M142: 1.498606601 | N142: 1.572044192 | O142: 1.636738773 | P142: 1.676143715 | Q142: 1.74867962 | R142: 1.79713682 | S142: 1.839993129 | T142: 1.885498178 | U142: 1.917766745 | V142: 1.974556266 | W142: 1.994770552 | X142: 2.014693142 | Y142: 2.061002499
A143: 0 | F143: 0.1453506691 | G143: 0.513951154 | H143: 0.8068938474 | I143: 0.9921383277 | J143: 1.175335856 | K143: 1.319251533 | L143: 1.368780286 | M143: 1.501280807 | N143: 1.572232359 | O143: 1.638056833 | P143: 1.678231281 | Q143: 1.751810318 | R143: 1.797702075 | S143: 1.842308963 | T143: 1.88658768 | U143: 1.918058938 | V143: 1.975748078 | W143: 1.996592856 | X143: 2.015459881 | Y143: 2.061654497
A144: 0.924134371 | F144: 0.1453537251 | G144: 0.5144150718 | H144: 0.8103360381 | I144: 0.992568068 | J144: 1.178187481 | K144: 1.325608256 | L144: 1.369687889 | M144: 1.504235995 | N144: 1.573045472 | O144: 1.638982782 | P144: 1.680537102 | Q144: 1.752970947 | R144: 1.800472058 | S144: 1.847729483 | T144: 1.88737286 | U144: 1.918255303 | V144: 1.976758253 | W144: 1.997771891 | X144: 2.015945886 | Y144: 2.062180933
A145: 0 | F145: 0.1466915871 | G145: 0.5160543433 | H145: 0.8109942927 | I145: 0.9941943434 | J145: 1.179455156 | K145: 1.32679575 | L145: 1.371604662 | M145: 1.505477556 | N145: 1.576388249 | O145: 1.639251942 | P145: 1.680930992 | Q145: 1.754092367 | R145: 1.800578 | S145: 1.848578918 | T145: 1.888687018 | U145: 1.9184271 | V145: 1.977746546 | W145: 1.999597687 | X145: 2.017592341 | Y145: 2.062207615
A146: 0 | F146: 0.1468877173 | G146: 0.5166967646 | H146: 0.8126933359 | I146: 0.9950928772 | J146: 1.183513796 | K146: 1.327169113 | L146: 1.377917164 | M146: 1.505659589 | N146: 1.577583942 | O146: 1.639268835 | P146: 1.681039173 | Q146: 1.756507851 | R146: 1.801773655 | S146: 1.849305165 | T146: 1.890031213 | U146: 1.919101195 | V146: 1.979903206 | W146: 2.001103183 | X146: 2.021299442 | Y146: 2.062508222
A147: 0 | F147: 0.1490027186 | G147: 0.5170515773 | H147: 0.8158549263 | I147: 0.9963826494 | J147: 1.184998863 | K147: 1.332415396 | L147: 1.378059384 | M147: 1.514908997 | N147: 1.579151 | O147: 1.641861313 | P147: 1.684011956 | Q147: 1.757168495 | R147: 1.802878407 | S147: 1.852143494 | T147: 1.890106685 | U147: 1.919474204 | V147: 1.983169685 | W147: 2.002739355 | X147: 2.02280325 | Y147: 2.064419359
A148: 2.429021959 | F148: 0.1515200758 | G148: 0.5172071958 | H148: 0.8160944376 | I148: 0.9997010016 | J148: 1.185779652 | K148: 1.334807882 | L148: 1.379289386 | M148: 1.516885752 | N148: 1.581559803 | O148: 1.643375426 | P148: 1.6850169 | Q148: 1.75761548 | R148: 1.803338662 | S148: 1.855832984 | T148: 1.890797092 | U148: 1.920497131 | V148: 1.983331411 | W148: 2.003749493 | X148: 2.023086707 | Y148: 2.065546118
A149: 1.36435406 | F149: 0.1538342438 | G149: 0.5237816145 | H149: 0.8163329222 | I149: 1.000056231 | J149: 1.186371803 | K149: 1.335499404 | L149: 1.381591559 | M149: 1.518906562 | N149: 1.581745521 | O149: 1.643426676 | P149: 1.685583237 | Q149: 1.75777681 | R149: 1.805820604 | S149: 1.856034696 | T149: 1.891364561 | U149: 1.921587403 | V149: 1.983596683 | W149: 2.004879528 | X149: 2.02351517 | Y149: 2.066221431
A150: 0 | F150: 0.1544211789 | G150: 0.5239059529 | H150: 0.8189617199 | I150: 1.000695255 | J150: 1.188007044 | K150: 1.337248434 | L150: 1.381906746 | M150: 1.520300878 | N150: 1.583039928 | O150: 1.643816465 | P150: 1.686406631 | Q150: 1.758901041 | R150: 1.807974993 | S150: 1.858848283 | T150: 1.892304501 | U150: 1.921716808 | V150: 1.984122766 | W150: 2.006100568 | X150: 2.026746014 | Y150: 2.066385186
A151: 0 | F151: 0.1547826175 | G151: 0.5247911397 | H151: 0.8217504161 | I151: 1.001194534 | J151: 1.19275568 | K151: 1.337506771 | L151: 1.382131882 | M151: 1.523445134 | N151: 1.583957814 | O151: 1.645697368 | P151: 1.687467711 | Q151: 1.760518403 | R151: 1.808350029 | S151: 1.859150971 | T151: 1.895714258 | U151: 1.925295337 | V151: 1.987416361 | W151: 2.006407601 | X151: 2.027396789 | Y151: 2.067020864
A152: 0 | F152: 0.155217831 | G152: 0.5254924421 | H152: 0.8243464685 | I152: 1.003984302 | J152: 1.19372215 | K152: 1.338410025 | L152: 1.383712718 | M152: 1.525350381 | N152: 1.587091333 | O152: 1.646147326 | P152: 1.691092029 | Q152: 1.761358125 | R152: 1.80882044 | S152: 1.859387562 | T152: 1.897403004 | U152: 1.926664485 | V152: 1.987681332 | W152: 2.006474928 | X152: 2.028855167 | Y152: 2.067804335
A153: 0 | F153: 0.1554062285 | G153: 0.5274774502 | H153: 0.8248921443 | I153: 1.004645491 | J153: 1.195489644 | K153: 1.339775037 | L153: 1.389033003 | M153: 1.525795757 | N153: 1.590248235 | O153: 1.647185275 | P153: 1.691395205 | Q153: 1.761993163 | R153: 1.810598778 | S153: 1.860472533 | T153: 1.901027687 | U153: 1.928110814 | V153: 1.987957869 | W153: 2.006572232 | X153: 2.03001753 | Y153: 2.067934622
A154: 4.834786122 | F154: 0.1560247242 | G154: 0.5325690733 | H154: 0.8269134863 | I154: 1.005208725 | J154: 1.19604919 | K154: 1.345190335 | L154: 1.390815806 | M154: 1.525802002 | N154: 1.590580929 | O154: 1.649664578 | P154: 1.694351176 | Q154: 1.763184939 | R154: 1.814227681 | S154: 1.862668803 | T154: 1.903274711 | U154: 1.928754338 | V154: 1.990124451 | W154: 2.006837439 | X154: 2.030241414 | Y154: 2.067940097
A155: 0 | F155: 0.1563048062 | G155: 0.5329729459 | H155: 0.8270074815 | I155: 1.006071289 | J155: 1.202647924 | K155: 1.347409329 | L155: 1.390818158 | M155: 1.527196062 | N155: 1.592191892 | O155: 1.651116747 | P155: 1.694494736 | Q155: 1.766145257 | R155: 1.815047901 | S155: 1.863472361 | T155: 1.90467625 | U155: 1.929426229 | V155: 1.993193608 | W155: 2.007130902 | X155: 2.030911488 | Y155: 2.072238802
A156: 0 | F156: 0.1584075161 | G156: 0.5329960228 | H156: 0.8286123389 | I156: 1.006549513 | J156: 1.205318209 | K156: 1.347515076 | L156: 1.391424952 | M156: 1.527373101 | N156: 1.594964644 | O156: 1.653226485 | P156: 1.695404616 | Q156: 1.767352474 | R156: 1.817962939 | S156: 1.864777123 | T156: 1.912249695 | U156: 1.930402365 | V156: 1.994127487 | W156: 2.009000021 | X156: 2.031927833 | Y156: 2.072247577
A157: 0 | F157: 0.1591507239 | G157: 0.5343047751 | H157: 0.8314261679 | I157: 1.007850487 | J157: 1.205467693 | K157: 1.350111622 | L157: 1.39158262 | M157: 1.533682373 | N157: 1.597531136 | O157: 1.655476956 | P157: 1.695485434 | Q157: 1.767422358 | R157: 1.819381348 | S157: 1.867250066 | T157: 1.915854733 | U157: 1.931450009 | V157: 1.994389038 | W157: 2.011244661 | X157: 2.031937057 | Y157: 2.07472002
A158: 3.907828181 | F158: 0.1596635855 | G158: 0.5381051947 | H158: 0.833481576 | I158: 1.008068644 | J158: 1.206081467 | K158: 1.35078331 | L158: 1.392751968 | M158: 1.534544679 | N158: 1.599912119 | O158: 1.655854123 | P158: 1.697030406 | Q158: 1.769122147 | R158: 1.820129987 | S158: 1.867496941 | T158: 1.918274718 | U158: 1.932445955 | V158: 1.999193478 | W158: 2.012373516 | X158: 2.033082442 | Y158: 2.075290389
A159: 14.27067666 | F159: 0.1597400496 | G159: 0.5385470562 | H159: 0.8336293793 | I159: 1.009230407 | J159: 1.207109479 | K159: 1.35182218 | L159: 1.393775521 | M159: 1.536132814 | N159: 1.601156035 | O159: 1.657527646 | P159: 1.69746088 | Q159: 1.770365747 | R159: 1.82033006 | S159: 1.868023697 | T159: 1.919493653 | U159: 1.9324463 | V159: 2.000846767 | W159: 2.01264246 | X159: 2.034473433 | Y159: 2.075573967
A160: 2.306884155 | F160: 0.1603086076 | G160: 0.5397598282 | H160: 0.8346147974 | I160: 1.013242039 | J160: 1.208698544 | K160: 1.353822544 | L160: 1.39446428 | M160: 1.536534556 | N160: 1.601579901 | O160: 1.660992414 | P160: 1.698132374 | Q160: 1.775727174 | R160: 1.821218316 | S160: 1.872205989 | T160: 1.920801267 | U160: 1.933196981 | V160: 2.001231955 | W160: 2.014675409 | X160: 2.035276536 | Y160: 2.076653002
A161: 0 | F161: 0.1608251104 | G161: 0.5398506083 | H161: 0.8353356955 | I161: 1.015287512 | J161: 1.212082151 | K161: 1.355508958 | L161: 1.39500003 | M161: 1.536538918 | N161: 1.604046443 | O161: 1.661718854 | P161: 1.700006371 | Q161: 1.776249062 | R161: 1.821936082 | S161: 1.87493763 | T161: 1.923662536 | U161: 1.935119838 | V161: 2.002393849 | W161: 2.01492602 | X161: 2.03662743 | Y161: 2.077491552
A162: 0 | F162: 0.161536596 | G162: 0.5416567291 | H162: 0.8361538557 | I162: 1.016775533 | J162: 1.216320674 | K162: 1.3555104 | L162: 1.396504235 | M162: 1.541634845 | N162: 1.605038747 | O162: 1.662915303 | P162: 1.700236172 | Q162: 1.779007684 | R162: 1.821999491 | S162: 1.87680141 | T162: 1.927109439 | U162: 1.935140682 | V162: 2.002921824 | W162: 2.015262822 | X162: 2.037956768 | Y162: 2.077595965
A163: 0 | F163: 0.1626062165 | G163: 0.5428826923 | H163: 0.8390514947 | I163: 1.02009796 | J163: 1.216627391 | K163: 1.356163736 | L163: 1.397291565 | M163: 1.542661183 | N163: 1.605191482 | O163: 1.665081426 | P163: 1.700591838 | Q163: 1.779543599 | R163: 1.822375405 | S163: 1.87739613 | T163: 1.927690008 | U163: 1.93633108 | V163: 2.00315162 | W163: 2.015729464 | X163: 2.039334089 | Y163: 2.078771348
A164: 0 | F164: 0.1636707097 | G164: 0.5447869315 | H164: 0.8393351729 | I164: 1.020377801 | J164: 1.218277754 | K164: 1.356416845 | L164: 1.397922555 | M164: 1.542982916 | N164: 1.60658243 | O164: 1.665353816 | P164: 1.701144311 | Q164: 1.780455522 | R164: 1.82288055 | S164: 1.879483015 | T164: 1.928162334 | U164: 1.940736435 | V164: 2.003739462 | W164: 2.016816288 | X164: 2.040834226 | Y164: 2.081649535
A165: 0 | F165: 0.1638080097 | G165: 0.5450027012 | H165: 0.8402421809 | I165: 1.023034432 | J165: 1.221164041 | K165: 1.356565026 | L165: 1.39975643 | M165: 1.545705991 | N165: 1.617267484 | O165: 1.66655923 | P165: 1.701231354 | Q165: 1.781452931 | R165: 1.823635148 | S165: 1.881388033 | T165: 1.930577717 | U165: 1.943870713 | V165: 2.004111824 | W165: 2.017081933 | X165: 2.043587885 | Y165: 2.082397043
A166: 0 | F166: 0.1646006291 | G166: 0.5452399517 | H166: 0.8405037959 | I166: 1.023797512 | J166: 1.223687904 | K166: 1.358095432 | L166: 1.403633738 | M166: 1.545752734 | N166: 1.618068424 | O166: 1.667520532 | P166: 1.701300552 | Q166: 1.783533179 | R166: 1.823995222 | S166: 1.883980267 | T166: 1.931996426 | U166: 1.945034386 | V166: 2.004915415 | W166: 2.019253102 | X166: 2.046165745 | Y166: 2.083206033
A167: 0 | F167: 0.1648776691 | G167: 0.5454507313 | H167: 0.8409621244 | I167: 1.026419839 | J167: 1.225691431 | K167: 1.359081011 | L167: 1.403667827 | M167: 1.549100593 | N167: 1.61807498 | O167: 1.66777133 | P167: 1.701675908 | Q167: 1.786313273 | R167: 1.824841629 | S167: 1.88413447 | T167: 1.936487478 | U167: 1.945794473 | V167: 2.005123711 | W167: 2.019969122 | X167: 2.04688515 | Y167: 2.085200468
A168: 3.917249993 | F168: 0.1669324237 | G168: 0.5455798786 | H168: 0.8415280924 | I168: 1.0295092 | J168: 1.22706135 | K168: 1.359104385 | L168: 1.403937786 | M168: 1.549118295 | N168: 1.619419426 | O168: 1.668481391 | P168: 1.702085374 | Q168: 1.787222172 | R168: 1.825888995 | S168: 1.887143158 | T168: 1.938257604 | U168: 1.945817492 | V168: 2.00552222 | W168: 2.021431763 | X168: 2.049078039 | Y168: 2.087547283
A169: 0 | F169: 0.1671987619 | G169: 0.5464921148 | H169: 0.842739379 | I169: 1.029568279 | J169: 1.228008984 | K169: 1.359119558 | L169: 1.404407714 | M169: 1.549718921 | N169: 1.619773873 | O169: 1.669765108 | P169: 1.702373482 | Q169: 1.790672947 | R169: 1.826686523 | S169: 1.888214047 | T169: 1.939393527 | U169: 1.947299798 | V169: 2.005912732 | W169: 2.02252146 | X169: 2.049640181 | Y169: 2.087641849
A170: 0 | F170: 0.1692579476 | G170: 0.5491809476 | H170: 0.8427610619 | I170: 1.030141065 | J170: 1.23100401 | K170: 1.359588971 | L170: 1.406215295 | M170: 1.549734135 | N170: 1.620305133 | O170: 1.672963608 | P170: 1.704738734 | Q170: 1.793191367 | R170: 1.827728651 | S170: 1.889265899 | T170: 1.94243196 | U170: 1.950266324 | V170: 2.006470664 | W170: 2.025923574 | X170: 2.050146227 | Y170: 2.090554684
A171: 0 | F171: 0.1693476011 | G171: 0.5492213978 | H171: 0.844318636 | I171: 1.03211744 | J171: 1.233116198 | K171: 1.360952922 | L171: 1.409705509 | M171: 1.550945603 | N171: 1.620569972 | O171: 1.674417639 | P171: 1.706685405 | Q171: 1.793448893 | R171: 1.828722588 | S171: 1.890386822 | T171: 1.944079891 | U171: 1.95114029 | V171: 2.008433096 | W171: 2.026038883 | X171: 2.052681457 | Y171: 2.090991182
A172: 0.923719855 | F172: 0.1697144436 | G172: 0.5499192371 | H172: 0.845124156 | I172: 1.037476535 | J172: 1.235346331 | K172: 1.361493339 | L172: 1.412409781 | M172: 1.55364059 | N172: 1.623587306 | O172: 1.677768361 | P172: 1.706793706 | Q172: 1.795467394 | R172: 1.829849759 | S172: 1.891618484 | T172: 1.945004458 | U172: 1.953193179 | V172: 2.008646427 | W172: 2.027205588 | X172: 2.053094073 | Y172: 2.094261349
A173: 0 | F173: 0.1708129516 | G173: 0.5505094048 | H173: 0.8476076427 | I173: 1.038918871 | J173: 1.235362398 | K173: 1.365370733 | L173: 1.413104941 | M173: 1.55507154 | N173: 1.623987913 | O173: 1.677879646 | P173: 1.707013802 | Q173: 1.795471386 | R173: 1.830898275 | S173: 1.892863687 | T173: 1.945587672 | U173: 1.953524216 | V173: 2.00924845 | W173: 2.028321653 | X173: 2.053914999 | Y173: 2.097981779
A174: 0 | F174: 0.1710271573 | G174: 0.5524204048 | H174: 0.8486912106 | I174: 1.040171319 | J174: 1.235855666 | K174: 1.36819621 | L174: 1.413823571 | M174: 1.556425808 | N174: 1.624442295 | O174: 1.678950833 | P174: 1.709291053 | Q174: 1.797238382 | R174: 1.833528126 | S174: 1.895085048 | T174: 1.948232372 | U174: 1.955492214 | V174: 2.009648487 | W174: 2.028557159 | X174: 2.056441352 | Y174: 2.098186196
A175: 0 | F175: 0.1716664672 | G175: 0.5526589454 | H175: 0.8493141572 | I175: 1.04124016 | J175: 1.237494659 | K175: 1.368550447 | L175: 1.413940526 | M175: 1.556605924 | N175: 1.62464414 | O175: 1.680748066 | P175: 1.71038728 | Q175: 1.79948843 | R175: 1.833881436 | S175: 1.895969534 | T175: 1.948341726 | U175: 1.955631791 | V175: 2.00973623 | W175: 2.028836931 | X175: 2.057029813 | Y175: 2.098935025
A176: 0 | F176: 0.1720492101 | G176: 0.5528666123 | H176: 0.8535727354 | I176: 1.043112313 | J176: 1.238310617 | K176: 1.368906179 | L176: 1.41602084 | M176: 1.562747282 | N176: 1.626863647 | O176: 1.680945576 | P176: 1.711883175 | Q176: 1.802049383 | R176: 1.835651139 | S176: 1.897626475 | T176: 1.951187144 | U176: 1.955731277 | V176: 2.010948663 | W176: 2.029057603 | X176: 2.058161513 | Y176: 2.101213859
A177: 0 | F177: 0.1738879591 | G177: 0.5540695883 | H177: 0.8556662614 | I177: 1.04332286 | J177: 1.240354817 | K177: 1.369791436 | L177: 1.418257953 | M177: 1.56591699 | N177: 1.627264774 | O177: 1.683703884 | P177: 1.713150469 | Q177: 1.802315325 | R177: 1.843907594 | S177: 1.898042707 | T177: 1.951402353 | U177: 1.957275168 | V177: 2.0126513 | W177: 2.0303201 | X177: 2.058183306 | Y177: 2.102054851
A178: 0 | F178: 0.1746434481 | G178: 0.5548971216 | H178: 0.8561103126 | I178: 1.043412809 | J178: 1.243726632 | K178: 1.372224232 | L178: 1.419656135 | M178: 1.566945719 | N178: 1.627346642 | O178: 1.684571037 | P178: 1.714249418 | Q178: 1.804697414 | R178: 1.844036994 | S178: 1.899017206 | T178: 1.951798647 | U178: 1.957390361 | V178: 2.012936668 | W178: 2.034933868 | X178: 2.059896881 | Y178: 2.104416113
A179: 0 | F179: 0.1767309031 | G179: 0.5550631531 | H179: 0.8563276824 | I179: 1.044220031 | J179: 1.243982165 | K179: 1.374031804 | L179: 1.420599347 | M179: 1.567734396 | N179: 1.627899756 | O179: 1.684767775 | P179: 1.716153628 | Q179: 1.807910406 | R179: 1.844087777 | S179: 1.902485637 | T179: 1.953416006 | U179: 1.958950873 | V179: 2.012941327 | W179: 2.035277132 | X179: 2.063243871 | Y179: 2.105966383
A180: 0 | F180: 0.177050683 | G180: 0.555875973 | H180: 0.8576676258 | I180: 1.045806695 | J180: 1.244216432 | K180: 1.374770413 | L180: 1.421372582 | M180: 1.572029954 | N180: 1.629728003 | O180: 1.685102354 | P180: 1.716572104 | Q180: 1.8108835 | R180: 1.849300716 | S180: 1.902998629 | T180: 1.954493427 | U180: 1.959257202 | V180: 2.01319384 | W180: 2.036711703 | X180: 2.064687735 | Y180: 2.106303216
A181: 3.645881385 | F181: 0.177573093 | G181: 0.556642763 | H181: 0.8578798321 | I181: 1.04697369 | J181: 1.244549931 | K181: 1.376535437 | L181: 1.422296916 | M181: 1.575974848 | N181: 1.633869415 | O181: 1.686163298 | P181: 1.719003781 | Q181: 1.81345886 | R181: 1.851562014 | S181: 1.904240518 | T181: 1.954875259 | U181: 1.960072894 | V181: 2.014820689 | W181: 2.037082916 | X181: 2.065121526 | Y181: 2.10777897
A182: 12.58841635 | F182: 0.1788396099 | G182: 0.5576748691 | H182: 0.8589814916 | I182: 1.049537658 | J182: 1.245434317 | K182: 1.376670782 | L182: 1.423804436 | M182: 1.577139217 | N182: 1.634796478 | O182: 1.686300545 | P182: 1.721069247 | Q182: 1.815042735 | R182: 1.852624164 | S182: 1.904624419 | T182: 1.9553108 | U182: 1.961679083 | V182: 2.015754974 | W182: 2.037267754 | X182: 2.065554814 | Y182: 2.109705546
A183: 0.17067585 | F183: 0.1789886642 | G183: 0.5595330395 | H183: 0.8658496798 | I183: 1.049942594 | J183: 1.247967199 | K183: 1.378169741 | L183: 1.424877269 | M183: 1.577997362 | N183: 1.637479866 | O183: 1.688778376 | P183: 1.722431627 | Q183: 1.81640895 | R183: 1.852656726 | S183: 1.906964308 | T183: 1.955407273 | U183: 1.961721489 | V183: 2.016603778 | W183: 2.037661995 | X183: 2.066255815 | Y183: 2.110523208
A184: 0 | F184: 0.1790442768 | G184: 0.5600325546 | H184: 0.8675733809 | I184: 1.053682668 | J184: 1.248353815 | K184: 1.379441318 | L184: 1.424878711 | M184: 1.5780911 | N184: 1.64038843 | O184: 1.691021977 | P184: 1.724404484 | Q184: 1.818687911 | R184: 1.853094231 | S184: 1.907990963 | T184: 1.956055926 | U184: 1.96385713 | V184: 2.017786709 | W184: 2.039036752 | X184: 2.06824824 | Y184: 2.112849532
A185: 2.394006121 | F185: 0.1793261683 | G185: 0.5619181645 | H185: 0.8691252205 | I185: 1.055228333 | J185: 1.250880215 | K185: 1.380788788 | L185: 1.426712744 | M185: 1.578627576 | N185: 1.640408117 | O185: 1.692315324 | P185: 1.73243945 | Q185: 1.819306713 | R185: 1.854635861 | S185: 1.908262994 | T185: 1.956387248 | U185: 1.964158511 | V185: 2.019555034 | W185: 2.040499227 | X185: 2.068411064 | Y185: 2.115608875
A186: 2.056430416 | F186: 0.1795752405 | G186: 0.5628898959 | H186: 0.8714404034 | I186: 1.056497849 | J186: 1.25175231 | K186: 1.381668124 | L186: 1.427849463 | M186: 1.58110628 | N186: 1.641149173 | O186: 1.700604264 | P186: 1.733026443 | Q186: 1.819628474 | R186: 1.855399238 | S186: 1.91041972 | T186: 1.956996714 | U186: 1.964469791 | V186: 2.020176652 | W186: 2.043889357 | X186: 2.069114509 | Y186: 2.116411439
A187: 1.287166963 | F187: 0.1816354972 | G187: 0.5641595985 | H187: 0.8733279353 | I187: 1.057384222 | J187: 1.253916511 | K187: 1.381982407 | L187: 1.428111211 | M187: 1.584161935 | N187: 1.643355304 | O187: 1.702538538 | P187: 1.734478615 | Q187: 1.820126062 | R187: 1.855866746 | S187: 1.911362087 | T187: 1.959978787 | U187: 1.964731678 | V187: 2.020779064 | W187: 2.04401678 | X187: 2.070369335 | Y187: 2.11670112
A188: 0 | F188: 0.182702891 | G188: 0.5643312336 | H188: 0.8743952209 | I188: 1.059412365 | J188: 1.256028557 | K188: 1.382102919 | L188: 1.42828106 | M188: 1.584992605 | N188: 1.645277343 | O188: 1.703097262 | P188: 1.735131938 | Q188: 1.825109062 | R188: 1.856350191 | S188: 1.911498102 | T188: 1.961765882 | U188: 1.966337931 | V188: 2.021651394 | W188: 2.044571189 | X188: 2.070989249 | Y188: 2.121004441
A189: 0 | F189: 0.1853978967 | G189: 0.5644825565 | H189: 0.8747753262 | I189: 1.061256299 | J189: 1.256353388 | K189: 1.383450789 | L189: 1.429878718 | M189: 1.586871742 | N189: 1.64597199 | O189: 1.704394339 | P189: 1.736057872 | Q189: 1.825109153 | R189: 1.857429296 | S189: 1.911846532 | T189: 1.962503323 | U189: 1.96749148 | V189: 2.022313756 | W189: 2.045760111 | X189: 2.071446957 | Y189: 2.121018585
A190: 4.83756023 | F190: 0.1881025428 | G190: 0.5646114846 | H190: 0.8752464517 | I190: 1.061388334 | J190: 1.256823025 | K190: 1.384478038 | L190: 1.430064621 | M190: 1.588726191 | N190: 1.647878505 | O190: 1.704562247 | P190: 1.737673587 | Q190: 1.825419683 | R190: 1.858514934 | S190: 1.912557774 | T190: 1.964994091 | U190: 1.967563446 | V190: 2.022332927 | W190: 2.046200199 | X190: 2.071601482 | Y190: 2.123088477
A191: 0 | F191: 0.1887095618 | G191: 0.5659421269 | H191: 0.8764193599 | I191: 1.061607969 | J191: 1.256853295 | K191: 1.385572938 | L191: 1.430342937 | M191: 1.589255113 | N191: 1.648034396 | O191: 1.705078002 | P191: 1.737908974 | Q191: 1.825497841 | R191: 1.859239778 | S191: 1.913595344 | T191: 1.967539341 | U191: 1.969751496 | V191: 2.022585714 | W191: 2.046289671 | X191: 2.072523168 | Y191: 2.125065119
A192: 1.7988109 | F192: 0.1887582934 | G192: 0.5670622007 | H192: 0.8766906374 | I192: 1.062275615 | J192: 1.257514382 | K192: 1.386519007 | L192: 1.432386816 | M192: 1.590160544 | N192: 1.648900656 | O192: 1.707975085 | P192: 1.737939516 | Q192: 1.82672957 | R192: 1.859518037 | S192: 1.916586355 | T192: 1.974661295 | U192: 1.971295056 | V192: 2.022980391 | W192: 2.046859204 | X192: 2.073943393 | Y192: 2.126164248
A193: 0.908959602 | F193: 0.1890795689 | G193: 0.5670788094 | H193: 0.8794447357 | I193: 1.063737345 | J193: 1.260537475 | K193: 1.388828051 | L193: 1.433317269 | M193: 1.592503473 | N193: 1.651858541 | O193: 1.708211396 | P193: 1.740079225 | Q193: 1.827014353 | R193: 1.860987094 | S193: 1.917475192 | T193: 1.975498905 | U193: 1.97348292 | V193: 2.024245119 | W193: 2.047487942 | X193: 2.077075487 | Y193: 2.126184958
A194: 10.34821411 | F194: 0.1891719538 | G194: 0.5672907298 | H194: 0.8801113887 | I194: 1.064326329 | J194: 1.261835652 | K194: 1.388970672 | L194: 1.435803577 | M194: 1.595292587 | N194: 1.652154626 | O194: 1.708326453 | P194: 1.741455647 | Q194: 1.828756098 | R194: 1.861628137 | S194: 1.917589609 | T194: 1.978175881 | U194: 1.974150925 | V194: 2.024548463 | W194: 2.049426023 | X194: 2.077089877 | Y194: 2.130850775
A195: 0 | F195: 0.189470018 | G195: 0.5677625287 | H195: 0.8804177405 | I195: 1.064349156 | J195: 1.262209494 | K195: 1.389656532 | L195: 1.437353403 | M195: 1.595617393 | N195: 1.652155343 | O195: 1.708372136 | P195: 1.741902832 | Q195: 1.828923753 | R195: 1.863007016 | S195: 1.919056355 | T195: 1.979269196 | U195: 1.976195162 | V195: 2.025191078 | W195: 2.052026087 | X195: 2.077282131 | Y195: 2.132046077
A196: 53.28757404 | F196: 0.1904220283 | G196: 0.5701187142 | H196: 0.8806129989 | I196: 1.064501948 | J196: 1.26574797 | K196: 1.390541118 | L196: 1.437713585 | M196: 1.596143177 | N196: 1.653238759 | O196: 1.708992111 | P196: 1.743527776 | Q196: 1.830595529 | R196: 1.863030623 | S196: 1.919116265 | T196: 1.979516443 | U196: 1.976581513 | V196: 2.025250439 | W196: 2.05390532 | X196: 2.078352759 | Y196: 2.132557624
A197: 0 | F197: 0.1909828994 | G197: 0.5703329736 | H197: 0.881181238 | I197: 1.065430466 | J197: 1.266333117 | K197: 1.391931898 | L197: 1.438205494 | M197: 1.596763471 | N197: 1.653629584 | O197: 1.711706793 | P197: 1.743890125 | Q197: 1.830721204 | R197: 1.863858931 | S197: 1.919319327 | T197: 1.980306518 | U197: 1.977959844 | V197: 2.030717742 | W197: 2.053980111 | X197: 2.07857597 | Y197: 2.134134061
A198: 3.427955991 | F198: 0.1919940999 | G198: 0.5708857491 | H198: 0.8820537244 | I198: 1.067493373 | J198: 1.267025572 | K198: 1.392180852 | L198: 1.438531014 | M198: 1.597163373 | N198: 1.653813334 | O198: 1.711956462 | P198: 1.74509743 | Q198: 1.831202881 | R198: 1.864451821 | S198: 1.920236163 | T198: 1.981764107 | U198: 1.981252131 | V198: 2.031318925 | W198: 2.054398965 | X198: 2.078797026 | Y198: 2.13490124
A199: 0 | F199: 0.1927172435 | G199: 0.5726624334 | H199: 0.8827774589 | I199: 1.0700469 | J199: 1.269059045 | K199: 1.39229863 | L199: 1.438898766 | M199: 1.599192913 | N199: 1.655041637 | O199: 1.712609132 | P199: 1.746638281 | Q199: 1.833948688 | R199: 1.864790637 | S199: 1.920821917 | T199: 1.982837906 | U199: 1.981514863 | V199: 2.03362996 | W199: 2.058293831 | X199: 2.079893148 | Y199: 2.135583996
A200: 1.877990547 | F200: 0.1934687716 | G200: 0.5763596749 | H200: 0.8838624967 | I200: 1.071233392 | J200: 1.271445727 | K200: 1.393016567 | L200: 1.439920981 | M200: 1.599703608 | N200: 1.655359947 | O200: 1.715466538 | P200: 1.74673564 | Q200: 1.836469071 | R200: 1.865026994 | S200: 1.920857395 | T200: 1.983388238 | U200: 1.981733108 | V200: 2.033742738 | W200: 2.058460008 | X200: 2.082282837 | Y200: 2.138180462
A201: 1.489149214 | F201: 0.1953418526 | G201: 0.5770382346 | H201: 0.8844383899 | I201: 1.071665911 | J201: 1.274366442 | K201: 1.393289964 | L201: 1.440857529 | M201: 1.601270716 | N201: 1.655495075 | O201: 1.715493127 | P201: 1.747118839 | Q201: 1.839500709 | R201: 1.865145936 | S201: 1.924352013 | T201: 1.983929731 | U201: 1.982572833 | V201: 2.035312174 | W201: 2.05884354 | X201: 2.08404923 | Y201: 2.138555459
A202: 14.20842456 | F202: 0.1953880773 | G202: 0.5787426105 | H202: 0.8856789122 | I202: 1.072127782 | J202: 1.274985929 | K202: 1.396072038 | L202: 1.445140763 | M202: 1.60417534 | N202: 1.656299732 | O202: 1.721178305 | P202: 1.75044864 | Q202: 1.840151344 | R202: 1.865720412 | S202: 1.924544606 | T202: 1.984020766 | U202: 1.984921162 | V202: 2.035646303 | W202: 2.060083254 | X202: 2.08727123 | Y202: 2.13874273
A203: 0.842871465 | F203: 0.1959604379 | G203: 0.5795283192 | H203: 0.8868773429 | I203: 1.072235048 | J203: 1.275088971 | K203: 1.396179869 | L203: 1.446226767 | M203: 1.604678344 | N203: 1.657376666 | O203: 1.721638537 | P203: 1.750657887 | Q203: 1.840552457 | R203: 1.868879486 | S203: 1.925333182 | T203: 1.984316601 | U203: 1.986209909 | V203: 2.038991484 | W203: 2.061575726 | X203: 2.087967297 | Y203: 2.138866486
A204: 0 | F204: 0.1962638355 | G204: 0.5795370518 | H204: 0.8880679053 | I204: 1.073077908 | J204: 1.27510443 | K204: 1.396789534 | L204: 1.450499301 | M204: 1.606578326 | N204: 1.65886407 | O204: 1.722207769 | P204: 1.750854575 | Q204: 1.841066129 | R204: 1.869266403 | S204: 1.925939612 | T204: 1.984915388 | U204: 1.98698779 | V204: 2.043321528 | W204: 2.063546221 | X204: 2.090532288 | Y204: 2.138896024
A205: 0.647965112 | F205: 0.196989964 | G205: 0.5827609193 | H205: 0.8890472446 | I205: 1.073266652 | J205: 1.276664547 | K205: 1.39768622 | L205: 1.452943725 | M205: 1.606665346 | N205: 1.660352314 | O205: 1.723644431 | P205: 1.753240066 | Q205: 1.841751983 | R205: 1.871655821 | S205: 1.92720527 | T205: 1.985347251 | U205: 1.987049763 | V205: 2.044644624 | W205: 2.063753608 | X205: 2.093223302 | Y205: 2.139712722
A206: 0.24235644 | F206: 0.1972315589 | G206: 0.5837975118 | H206: 0.8905494246 | I206: 1.073662863 | J206: 1.278062567 | K206: 1.398285497 | L206: 1.456222207 | M206: 1.609258159 | N206: 1.66121905 | O206: 1.725025011 | P206: 1.755809157 | Q206: 1.843226214 | R206: 1.872715918 | S206: 1.927785184 | T206: 1.987417199 | U206: 1.987074117 | V206: 2.045204172 | W206: 2.066427272 | X206: 2.094172629 | Y206: 2.139856254
... 4294 more rows
